{"text_format":"1","workbook":"xlsx","n_sheets":9,"sheets":["Instructivo","DEMANDA ANUAL","VOLUMEN DE QUEJAS","COSTO ADMINISTRACIÓN PÚBLICA","RESUMEN DE COSTOS AP","AUXILIAR COSTO ADMINISTRACIÓN","TIEMPO DE RESPUESTA","CANAL ATENCIÓN","RESUMEN"],"not_rendered":{"charts":0,"images":7,"macros":1,"external_links":0,"defined_names":1,"comments":5,"pivot_tables":0},"unopened":[],"bounds":{"document_bytes":16777216,"sheet_cells":100000,"rows_first":2000,"rows_last":500,"rows_between":2000,"halvings":0,"cell_chars":16384,"cell_head_chars":4096},"cells_cut":0,"cells_raw":0,"read":"whole","date_system":"1900"}

{"sheet":"Instructivo","index":0,"n_rows":70,"n_cols":1,"rows_kept":70,"cut":false,"hidden":false,"merged":[]}
["CRITERIO DE PRIORIZACIÓN DE TRÁMITES ADMINISTRATIVOS"]
["Instructivo"]
["Consideraciones generales"]
[]
["En las hojas “COSTO DE ADMINISTRACIÓN PÚBLICA”y “RESUMEN”  para añadir más trámites y que apliquen las fórmulas, se deberá seleccionar la primera fila y copiarla una por cada trámite de la entidad"]
[]
["Todas las hojas tienen columnas de color celeste, en las cuales NO deben ingresar valores ya que contienen fórmulas."]
["Para la carga en GOB.EC. La institución debe recordar que el peso máximo del archivo es de 2 MB."]
["Esquema de puntuación"]
["Para priorizar un trámite, se realizará un análisis de criterios básicos y adicionales basado en información que disponen las instituciones sujetas a esta norma técnica. Cada criterio será puntuado según los lineamientos presentes en esta norma."]
["a) Demanda Anual"]
["Considerará el volumen o frecuencia de las solicitudes que ingresan al año a cada institución para la gestión de un trámite en particular."]
["La identificación del volumen anual de los trámites se realizará a través de sus registros de transacciones y/o el número de visitas de consulta de información realizadas a través de páginas web institucionales."]
["Para realizar el registro realice lo siguiente:"]
["1.- Seleccione la hoja DEMANDA ANUAL"]
["2.- Ingrese los trámites de la institución registrando el identificador y nombre en las columnas respectivas.  "]
["3.- Para cada trámite debe especificar en la columna DEMANDA ANUAL el volumen o frecuencia anual, de acuerdo a lo mencionado anteriormente."]
["4.- Una vez terminado el llenado solicitado presione el botón PUNTUACIÓN, se ordenara de menor a mayor. "]
["5.- Usted visualizará el ordenamiento de los trámites ingresados de acuerdo al número de  volumen o frecuencia anual."]
["6.- Así mismo, usted visualizará el puntaje obtenido en la columna PUNTUACIÓN de acuerdo al grupo obtenido por cada trámite de acuerdo al número de volumen o frecuencia anual cosiderando lo siguiente: ** Primer grupo (trámites con menor demanda no incluye los trámites con demanda 0 ) = 3\n** Segundo grupo (trámites con demanda intermedia) = 6\n** Tercer grupo (trámites con mayor demanda) = 10"]
["Cada vez que requiera actualizar el puntaje presionando el botón puntuación, debe verificar que la celda de la columna puntaje se encuentren vacías, es decir, se debe borrar cualquier valor de puntaje obtenido previamente."]
["b) Volumen de quejas asociadas a un trámite: "]
["Considerará la cantidad de quejas recibidas en relación a un trámite durante un año. Estas quejas deberán estar documentadas en medios físicos y/o digitales."]
["Para determinar la puntuación, se colocará en una tabla todos los trámites con sus correspondientes quejas ordenándose de menor a mayor. Se dividirá en 2 partes en los que cada grupo contenga la misma cantidad de trámites."]
["Para realizar el registro realice lo siguiente:"]
["1.- Seleccione la hoja VOLUMEN DE QUEJAS"]
["2.- Ingrese los trámites de la institución registrando el identificador y nombre en las columnas respectivas.  Si usted requiere de acuerdo al número de trámites copie filas adicionales que estén dentro del cuadro"]
["3.- Para cada trámite debe especificar en la columna VOLUMEN QUEJAS el número de quejas anual, de acuerdo a lo mencionado anteriormente."]
["4.- Una vez terminado el llenado solicitado presione el botón PUNTUACIÓN."]
["5.- Usted visualizará el ordenamiento de los trámites ingresados de acuerdo al número de  volumen o frecuencia anual."]
["6.- Así mismo, usted visualizará el puntaje obtenido en la columna PUNTUACIÓN de acuerdo al grupo obtenido por cada trámite de acuerdo al número de volumen o frecuencia anual cosiderando lo siguiente: La puntuación se basará en los siguientes grupos:\n** Primer grupo (trámites con menor cantidad de quejas, no incluye los trámites con queja 0 ) = 4\n** Segundo grupo (trámites con mayor porcentaje de quejas) = 10"]
["El valor del volumen de quejas no debe ser superior al valor del volumen de la demana, no le permitirá registrar un valor."]
["c) Costo para la administración pública: "]
["En cada trámite, basado en un caso estándar, se deberá estimar el costo incurrido en el costo de personal y recursos necesarios para su atención desde que el administrado entregó todos los requisitos hasta que la institución entregue el producto, respuesta o servicio requerido en el trámite. Se considerará:"]
["• Costo de personal:"]
["Costo del personal para atender el trámite, se excluyen actividades realizadas automáticamente o que dependen del administrado. El tiempo deberá considerar únicamente el tiempo efectivo de trabajo del personal, no debe considerar el tiempo de espera o de movimiento."]
["• Costo de recursos:"]
["Se deberá considerar el costo directo en el que la institución debe incurrir para atender un trámite. Se debe considerar los insumos o materia prima necesaria u cualquier otro que la institución considere pertinente."]
["Para realizar el registro realice lo siguiente:"]
["1.- Seleccione la hoja COSTO ADMINISTRACIÓN PÚBLICA"]
["2.- Ingrese los trámites de la institución registrando el identificador y nombre en las columnas respectivas.  Si usted requiere de acuerdo al número de trámites copie filas adicionales que estén dentro del cuadro"]
["3.- Para calcular el tiempo de las actividades, utilizar la hoja AUXILIAR COSTO ADMINISTRACIÓN donde deberá listar todas las actividades que realiza la institución en un caso estándar y asignar el tiempo mínimo que toma cada actvidad (en horas). El tiempo total de las actividades, deberá ingresar en la correspondiente celda de la hoja COSTO ADMINISTRACIÓN PÚBLICA"]
["4.- En función de la información registrada en el paso 3, la matriz entregará el costo del personal"]
["5.- Completar la columna \"Costo recursos\", en la cual ingresará el costo directo en el que incurre la institución para entregar el trámite. En este valor se considerarán los valores correspondientes a insumos y/o materia prima mínimos que se invierten por cada trámite (no se considera mano de obra)"]
["6.- La columna \"Costo para la adm. pública\" mostrará el costto de este criterio para cada trámite"]
["7,- Para que la fórmula funcione debe arrastrar hacia abajo al último de los támites ingresados, no copiar"]
["7.- Una vez que disponga del Costo para la administración pública, presionar el botón \"GENERAR\"."]
["8. Visualizar la hoja “RESUMEN DE COSTO AP” en la que va a encontrar copiada las celdas necesarias para el ordenamiento y puntuación de las mismas al presionar el botón “PUNTUACIÓN”"]
[]
["d) Tiempo de respuesta: "]
["Considerará los tiempos que a las instituciones les toma dar respuesta a un trámite desde que reciben la solicitud del administrado hasta la finalización del mismo. Para la definición del tiempo se considerará un caso estándar."]
["Para determinar la puntuación, se colocará en una tabla todos los trámites con el tiempo de respuesta, ordenándose de menor a mayor. Se dividirá en 4 grupos, en los que cada uno contenga la misma cantidad de trámites."]
["Para realizar el registro realice lo siguiente:"]
["1.- Seleccione la hoja TIEMPO DE RESPUESTA"]
["2.- Ingrese los trámites de la institución registrando el identificador y nombre en las columnas respectivas.  Si usted requiere de acuerdo al número de trámites copie filas adicionales que estén dentro del cuadro"]
["3.- Para cada trámite debe especificar en la columna TIEMPO RESPUESTA el tiempo, de acuerdo a lo mencionado anteriormente."]
["4.- Una vez terminado el llenado solicitado presione el botón PUNTUACIÓN."]
["5.- Usted visualizará el ordenamiento de los trámites ingresados de acuerdo al número de  volumen o frecuencia anual."]
["6.- Así mismo, usted visualizará el puntaje obtenido en la columna PUNTUACIÓN de acuerdo al grupo obtenido por cada trámite de acuerdo al número de volumen o frecuencia anual cosiderando lo siguiente:  La puntuación considera lo siguiente:\n** Primer grupo (menor o igual a 40 horas laboralres) = 0\n** Segundo grupo mayor  40 horas laboralres) = 30"]
["e) Canal de atención: "]
["Considerará los canales de atención a través de los cuales el administrado puede iniciar el trámite."]
["Para realizar el registro realice lo siguiente:"]
["1.- Seleccione la hoja CANAL ATENCIÓN"]
["2.- Ingrese los trámites de la institución registrando el identificador y nombre en las columnas respectivas.  Si usted requiere de acuerdo al número de trámites copie filas adicionales que estén dentro del cuadro"]
["3.- Para cada trámite debe seleccionar el canal de atención del trámite en la columna CANAL ATENCIÓN, que pueden ser: \nEl trámite se puede completar totalmente en línea: Se considera trámite totalmente en línea cuando el administrado no requiere realizar ninguna interacción presencial con la institución = 0\nEl trámite no se puede completar totalmente en línea: Se considera este caso, cuando el trámite incluye al menos una actividad, incluido mecanismos de pago, en la que el administrado deba acudir presencialmente a la institución, para la realización de dicho trámite. Los trámites presenciales se consideran dentro de esta categoría = 10"]
["4.- De acuerdo a la selección usted obtendrá la puntuación del trámite que se visualizará en la columna PUNTUACIÓN."]
[]
["f) Resumen"]
["En esta hoja deberá consolidar todas las puntuaciones obtenidas para cada trámite en los criterios a) hasta e). Adicionalmente deberá analizar los criterios adicionales que dispone la norma técnica, para estos últimos solamente deberá seleccionar en la celda correspondiente y la matriz asignará la puntuación adicional. Los criterios que deberá considerar son:\n- NECESIDADES CIUDADANAS: Si la institución ha implementado mecanismos para identificar necesidades ciudadanas respecto al trámite, seleccionar \"SI\", caso contrario, seleccionar \"NO\"\n- SUSCEPTIBILIDAD A CORRUPCIÓN: Si la institución dispone de información documentada sobre presuntos actos de corrupción, seleccionar \"SI\", caso contrario, seleccionar \"NO\"\n- VOLUMEN DE DEVOLUCIONES: Si la institución posee documentación sobre devoluciones del trámite en una cantidad significativa, seleccionar \"SI\", caso contrario, seleccionar \"NO\"\nPara que funcione la lista depelgable debe arrastrar la lista y la puntuación hacia abajo al último de los támites ingresados, no copiar"]
["En la columna puntaje total se realizará la sumatoria de los valores de los criterios básicos y adicionales. Este valor deberá registrarse en la plataforma GOB.EC"]

{"sheet":"DEMANDA ANUAL","index":1,"n_rows":143,"n_cols":4,"rows_kept":143,"cut":false,"hidden":false,"merged":[[0,0,0,3],[1,0,1,3]]}
["PRIORIZACIÓN DE TRÁMITES ADMINISTRATIVOS"]
["DEMANDA ANUAL"]
[]
["IDENTIFICADOR","TRÁMITE","DEMANDA ANUAL","PUNTAJE"]
[null,"Autorización de Administradores de Zonas Especiales de Desarrollo Económicos",0,0]
[null,"Autorización para la exportación de alimento balanceado de uso acuícola",0,0]
[null,"Autorización previo a la celebración de contrato de arrendamiento o asociación para embarcaciones pesqueras extranjeras - anuencia",0,0]
[null,"Concesión de espacios marítimos jurisdiccionales para el ejercicio de la actividad de la maricultura",0,0]
[null,"Emisión de certificado de procedencia para post larvas y nauplios",0,0]
[null,"Emisión de registro de Comercializadores de Bienes de Producción Nacional (SBPN)",0,0]
[null,"Emisión de Registro de embotelladores para acceder al impuesto redimible a la botella plástica no retornable PET",0,0]
[null,"Emisión de Registro de importadores para acceder al impuesto redimible a la botella plástica no retornable PET",0,0]
[null,"Emisión de Registro de maquiladoras",0,0]
[null,"Autorización de importación de especies acuícolas vivas",1,3]
[null,"Autorización previa para la importación y posterior nacionalización de embarcaciones pesqueras industriales - anuencia ",1,3]
[null,"Disolución y liquidación por causal de las organizaciones sociales",1,3]
[null,"Emisión de dictamen para autorización de Servicios de Apoyo en Zonas Especiales de Desarrollo Económico",1,3]
[null,"Emisión de permiso de pesca para embarcación deportiva",1,3]
[null,"Emisión de permiso para establecimientos comerciales",1,3]
[null,"Autorización para reconstrucción y/o modificación de embarcaciones pesqueras industriales",2,3]
[null,"Calificación de Operadores de Zonas Especiales de Desarrollo Económico",2,3]
[null,"Clasificación bajo la modalidad de copacking para empresas acuícolas",2,3]
[null,"Disolución y liquidación voluntaria de las organizaciones sociales",2,3]
[null,"Emisión de Registro de importación de materia prima industrial",2,3]
[null,"Autorización de uso de marca para exportación de productos pesqueros",3,3]
[null,"Emisión de Registro de centros de acopio para acceder al impuesto redimible a la botella plástica no retornable PET",3,3]
[null,"Inscripción de nuevos programas de maquila",3,3]
[null,"Ampliación o cancelación de programas de maquila",4,3]
[null,"Emisión de Registro a personas naturales o jurídicas que deseen brindar el servicio para ejecutar el proceso de etiquetado y/o reetiquetado",4,3]
[null,"Asistencia técnica pesquera industrial",5,3]
[null,"Autorización para la comercialización interna de productos acuícolas procesados importados",5,3]
[null,"Emisión de Registro de recicladores para acceder al impuesto redimible a la botella plástica no retornable PET",5,3]
[null,"Autorización del ejercicio de la actividad pesquera para empresas procesadoras con modalidad copacking",6,3]
[null,"Autorización para celebrar contrato de arrendamiento o asociación para embarcaciones pesqueras extranjeras",6,3]
[null,"Emisión de Registro industrial de productores farmacéuticos (RIPF) ",6,3]
[null,"Autorización para ejercer actividades conexas de importación de insumos de uso acuícola",7,3]
[null,"Emisión de Registro para ejecutar el proceso de chatarrización de bienes del sector público",7,3]
[null,"Designación de Organismos de Evaluación de la Conformidad",9,3]
[null,"Emisión de Registro de empresas reencauchadoras",9,3]
[null,"Autorización para importación de prototipos",10,3]
[null,"Emisión de certificado FAD FREE",10,3]
[null,"Emisión de licencias de importación de CKD de vehículos",11,3]
[null,"Emisión de Registro de Ensambladoras ",11,3]
[null,"Emisión de Registro de importadores de sal",11,3]
[null,"Inclusión de nuevos fabricantes/proveedores de CKD",11,3]
[null,"Emisión de Registro de clave de exportación de café",12,3]
[null,"Autorización de uso de marca para exportación de productos acuícolas",13,3]
[null,"Autorización del ejercicio de la actividad pesquera extractiva bajo contrato de asociación o arrendamiento para embarcaciones industriales extranjeras",14,3]
[null,"Emisión de Registro de exportador de chatarra",15,3]
[null,"Autorización para construcción de embarcaciones pesqueras artesanales",16,3]
[null,"Autorización del ejercicio de la actividad pesquera para empresas comercializadoras",19,3]
[null,"Reforma y codificación de los Estatutos",19,3]
[null,"Autorización de exención de tránsito en periodos de veda a embarcaciones pesqueras industriales",22,3]
[null,"Autorización del ejercicio de la actividad pesquera para empresas procesadoras y comercializadoras",22,3]
[null,"Concesión zonas de playa y bahía para ejercer la cría y cultivo especies bioacuáticas",22,3]
[null,"Autorización de licencias para importadores de productos remanufacturados",23,3]
[null,"Autorización y/o clasificación para ejercer actividades conexas de fabricación nacional",27,6]
[null,"Registro de Inclusión o exclusión de miembros de la Organización Social",28,6]
[null,"Autorización de importación para productos frescos o congelados",29,6]
[null,"Emisión de certificado de existencia o no de Producción Nacional",29,6]
[null,"Autorización del ejercicio de la actividad pesquera extractiva para embarcaciones artesanales nodrizas",33,6]
[null,"Autorización para la comercialización interna de productos acuícolas en fase de cultivo o procesamiento",34,6]
[null,"Autorización de  exportación de productos pesqueros sujetos a restricciones tiburones",37,6]
[null,"Clasificación de plantas procesadoras, empacadoras, productos y subproductos acuícolas",37,6]
[null,"Revisión de documento de formularios, monografías, y fichas técnicas para los diferentes mercados",38,6]
[null,"Autorización o clasificación para el establecimiento y funcionamiento de laboratorios de especies bioacuáticas",39,6]
[null,"Emisión de acta de producción efectiva acuícola",39,6]
[null,"Verificación de control zoosanitario en importación y aclimatación de organismos vivos acuícolas",39,6]
[null,"Emisión de Registro de Producción Nacional",40,6]
[null,"Aprobación de Estatuto y reconocimiento de personalidad jurídica",41,6]
[null,"Autorización para construcción de embarcaciones pesqueras industriales",42,6]
[null,"Emisión de certificado de declaración de pesca importada sin procesamiento",46,6]
[null,"Autorización de exenciones de tránsito para embarcaciones pesqueras industriales atuneras registradas en la CIAT",50,6]
[null,"Autorización de exportación de productos pesqueros no túnidos",50,6]
[null,"Autorización de cesión derechos concesión ejercer la cría y cultivo especies bioacuáticas zonas de playa y bahía",54,6]
[null,"Asistencia técnica pesquera artesanal",55,6]
[null,"Autorización de nuevos modelos y versiones de CKD",56,6]
[null,"Autorización del ejercicio de la actividad pesquera extractiva para embarcaciones industriales",66,6]
[null,"Emisión de certificado de TEDs",72,6]
[null,"Autorización de licencias para importación / exportación de sustancias agotadoras de la capa de ozono (HCFC)",77,6]
[null,"Emisión de permiso de pesca para embarcación industrial asociada",87,6]
[null,"Registro de Directiva de la Organización Social",90,6]
[null,"Autorización para reconstrucción y o modificación de embarcaciones pesqueras artesanales",92,6]
[null,"Asignación de contingente para importación de azúcar blanco originario de la Comunidad Andina en el marco de la Resolución Nro 020 2018 del COMEX",93,6]
[null,"Autorización de importación de insumos de uso acuícola",105,6]
[null,"Autorización de importación para garantizar la calidad e inocuidad de productos de uso acuícola",133,6]
[null,"Renovación derechos concesión y autorización ejercer la cria y cultivo especies bioacuáticas zonas playa y bahía",134,6]
[null,"Autorización para el cultivo de especies bioacuáticas en tierras altas",142,6]
[null,"Emisión de Registro de importadores de neumáticos",142,6]
[null,"Emisión de acta de producción efectiva pesquera",149,6]
[null,"Emisión de certificado sanitario de importación MSVC",154,6]
[null,"Autorización de Licencias de importación / exportación de sustancias Hidrofluorocarbonadas (HFC)",160,6]
[null,"Reemisión de certificado de registro sanitario unificado",174,6]
[null,"Emisión de certificado de acreditación de origen legal para productos acuícolas",180,6]
[null,"Atención de denuncias por infracciones u omisiones a la Ley del Sistema Ecuatoriano de la Calidad ",204,6]
[null,"Emisión de Registro Nacional de Emprendimiento",215,6]
[null,"Acceso a la información pública del Ministerio de Producción, Comercio Exterior, Inversiones y Pesca",224,6]
[null,"Emisión de certificado de captura para productos pesqueros nacionales sin procesamiento",264,6]
[null,"Emisión de certificado de validación del documento estadístico de productos pesqueros para re-exportación",273,6]
[null,"Emisión de certificado Dolphin Safe a embarcaciones industriales pesqueras",300,10]
[null,"Emisión de registro de inscripción de calidad e inocuidad de embarcaciones",318,10]
[null,"Emisión de registro de inscripción de calidad e inocuidad de embarcaciones para transportistas y comerciantes",318,10]
[null,"Autorización para productos de prohibida exportación y sujeta a autorización previa",372,10]
[null,"Aprobación de planillas A y B de autopartes de ensambladoras Ecuatorianas para exportación",401,10]
[null,"Emisión de Certificado de Procedimientos Acuícolas",401,10]
[null,"Emisión de registro de inscripción de calidad e inocuidad de establecimientos",404,10]
[null,"Emisión de certificado de registro sanitario unificado",452,10]
[null,"Emisión de Registro de certificados de conformidad",505,10]
[null,"Asistencia técnica en infraestructura, producción y buenas prácticas acuícolas",515,10]
[null,"Emisión de certificado de captura simplificada de productos pesqueros",516,10]
[null,"Atención de quejas por infracciones u omisiones a la Ley Orgánica de Defensa del Consumidor",685,10]
[null,"Emisión de certificado de validación del documento estadístico de productos pesqueros para exportación",696,10]
[null,"Emisión de certificado geográfico y estudios de cobertura para camaroneras y predios",864,10]
[null,"Asistencia técnica para el diseño gráfico y productos para las MIPYMES y artesanos ",910,10]
[null,"Emisión de certificado para establecimientos",972,10]
[null,"Emisión de certificado de acreditación de origen legal para productos pesqueros",996,10]
[null,"Autorización para la importación de productos de la pesca, procesados y harina de pescado",1078,10]
[null,"Calificación partes nacionales como Material originario ecuatoriano (MOE) a ser aplicado en el registro y operación de empresas ensambladoras",1159,10]
[null,"Emisión de permiso de pesca para embarcación industrial nacional",1167,10]
[null,"Autorización de etiquetado y/o reetiquetado de mercancías sujetas a reglamentación técnica",1391,10]
[null,"Emisión de Registro Único Artesanal",1421,10]
[null,"Emisión de Registro Único de Mipymes",1498,10]
[null,"Emisión de certificado de registro de control interno de captura a embarcaciones pesqueras industriales",1501,10]
[null,"Emisión de permiso para comerciante mayorista y minorista de productos pesqueros",1799,10]
[null,"Emisión de declaración de exportación de camarón a Estados Unidos de América (Form DSP-121)",1830,10]
[null,"Verificación regulatoria sanitaria",2102,10]
[null,"Emisión de permiso de pesca para embarcaciones artesanales",2217,10]
[null,"Emisión de permiso para pescador industrial",2350,10]
[null,"Emisión de permiso para pescador artesanal",2425,10]
[null,"Emisión de certificado de declaración de pesca importada con procesamiento",3039,10]
[null,"Emisión de certificado sanitario y/o de calidad traducido",3651,10]
[null,"Asistencia técnica para  proyectos de innovación productiva (MiproLab)",3728,10]
[null,"Emisión de Registro para la importación de textiles y calzado ",4926,10]
[null,"Emisión de certificado de captura para productos pesqueros nacionales con procesamiento",5061,10]
[null,"Análisis microbiológicos de insumos acuícolas",5326,10]
[null,"Asesoría a emprendedores en unidades productivas",5357,10]
[null,"Emisión de certificado sanitario de importación",8977,10]
[null,"Emisión de certificado de calidad de los productos pesqueros y acuícolas",14352,10]
[null,"Emisión o remisión de certificado sanitario de exportación de productos pesqueros y acuícolas",16218,10]
[null,"Emisión de certificaciones para productos pesqueros y acuícolas",21470,10]
[null,"Análisis físico, químico y microbiológico de productos pesqueros, acuícolas, agua, superficie y sedimentos",30503,10]
[null,"Análisis virales de productos e insumos acuícolas",76749,10]
[null,"Emisión de certificado de Origen de productos originarios de Ecuador para exportación",134454,10]

{"sheet":"VOLUMEN DE QUEJAS","index":2,"n_rows":143,"n_cols":6,"rows_kept":143,"cut":false,"hidden":false,"merged":[[0,0,0,5],[1,0,1,5]]}
["PRIORIZACIÓN DE TRÁMITES ADMINISTRATIVOS"]
["VOLUMEN DE QUEJAS"]
[]
["IDENTIFICADOR","TRÁMITE","VOLUMEN DEMANDA","VOLUMEN DE QUEJAS","PORCENTAJE","PUNTUACIÓN"]
[null,"Aprobación de Estatuto y reconocimiento de personalidad jurídica",41,0,0,0]
[null,"Reforma y codificación de los Estatutos",19,0,0,0]
[null,"Disolución y liquidación por causal de las organizaciones sociales",1,0,0,0]
[null,"Registro de Directiva de la Organización Social",90,0,0,0]
[null,"Registro de Inclusión o exclusión de miembros de la Organización Social",28,0,0,0]
[null,"Disolución y liquidación voluntaria de las organizaciones sociales",2,0,0,0]
[null,"Emisión de registro de Comercializadores de Bienes de Producción Nacional (SBPN)",0.01,0,0,0]
[null,"Emisión de Registro de Producción Nacional",40,0,0,0]
[null,"Atención de denuncias por infracciones u omisiones a la Ley del Sistema Ecuatoriano de la Calidad ",204,0,0,0]
[null,"Atención de quejas por infracciones u omisiones a la Ley Orgánica de Defensa del Consumidor",685,0,0,0]
[null,"Autorización de etiquetado y/o reetiquetado de mercancías sujetas a reglamentación técnica",1391,0,0,0]
[null,"Emisión de Registro de certificados de conformidad",505,0,0,0]
[null,"Emisión de Registro a personas naturales o jurídicas que deseen brindar el servicio para ejecutar el proceso de etiquetado y/o reetiquetado",4,0,0,0]
[null,"Designación de Organismos de Evaluación de la Conformidad",9,0,0,0]
[null,"Emisión de licencias de importación de CKD de vehículos",11,0,0,0]
[null,"Autorización de licencias para importadores de productos remanufacturados",23,0,0,0]
[null,"Autorización de nuevos modelos y versiones de CKD",56,0,0,0]
[null,"Autorización para importación de prototipos",10,0,0,0]
[null,"Emisión de certificado de existencia o no de Producción Nacional",29,0,0,0]
[null,"Emisión de Registro de clave de exportación de café",12,0,0,0]
[null,"Emisión de Registro de exportador de chatarra",15,0,0,0]
[null,"Emisión de Registro de importación de materia prima industrial",2,0,0,0]
[null,"Emisión de Registro de importadores de sal",11,0,0,0]
[null,"Inclusión de nuevos fabricantes/proveedores de CKD",11,0,0,0]
[null,"Calificación partes nacionales como Material originario ecuatoriano (MOE) a ser aplicado en el registro y operación de empresas ensambladoras",1159,0,0,0]
[null,"Emisión de Registro industrial de productores farmacéuticos (RIPF) ",6,0,0,0]
[null,"Emisión de Registro de Ensambladoras ",11,0,0,0]
[null,"Emisión de Registro para la importación de textiles y calzado ",4926,0,0,0]
[null,"Autorización de Administradores de Zonas Especiales de Desarrollo Económicos",0.01,0,0,0]
[null,"Calificación de Operadores de Zonas Especiales de Desarrollo Económico",2,0,0,0]
[null,"Emisión de dictamen para autorización de Servicios de Apoyo en Zonas Especiales de Desarrollo Económico",1,0,0,0]
[null,"Inscripción de nuevos programas de maquila",3,0,0,0]
[null,"Ampliación o cancelación de programas de maquila",4,0,0,0]
[null,"Emisión de Registro de maquiladoras",0.01,0,0,0]
[null,"Autorización de Licencias de importación / exportación de sustancias Hidrofluorocarbonadas (HFC)",160,0,0,0]
[null,"Autorización de licencias para importación / exportación de sustancias agotadoras de la capa de ozono (HCFC)",77,0,0,0]
[null,"Emisión de Registro de importadores de neumáticos",142,0,0,0]
[null,"Emisión de Registro de empresas reencauchadoras",9,0,0,0]
[null,"Emisión de Registro de centros de acopio para acceder al impuesto redimible a la botella plástica no retornable PET",3,0,0,0]
[null,"Emisión de Registro de embotelladores para acceder al impuesto redimible a la botella plástica no retornable PET",0.01,0,0,0]
[null,"Emisión de Registro de importadores para acceder al impuesto redimible a la botella plástica no retornable PET",0.01,0,0,0]
[null,"Emisión de Registro de recicladores para acceder al impuesto redimible a la botella plástica no retornable PET",5,0,0,0]
[null,"Emisión de Registro para ejecutar el proceso de chatarrización de bienes del sector público",7,0,0,0]
[null,"Asesoría a emprendedores en unidades productivas",5357,0,0,0]
[null,"Asistencia técnica para  proyectos de innovación productiva (MiproLab)",3728,0,0,0]
[null,"Asistencia técnica para el diseño gráfico y productos para las MIPYMES y artesanos ",910,0,0,0]
[null,"Emisión de Registro Nacional de Emprendimiento",215,0,0,0]
[null,"Emisión de Registro Único de Mipymes",1498,0,0,0]
[null,"Emisión de Registro Único Artesanal",1421,0,0,0]
[null,"Emisión de certificaciones para productos pesqueros y acuícolas",21470,0,0,0]
[null,"Emisión de certificado de calidad de los productos pesqueros y acuícolas",14352,0,0,0]
[null,"Emisión de certificado sanitario y/o de calidad traducido",3651,0,0,0]
[null,"Emisión de registro de inscripción de calidad e inocuidad de embarcaciones",318,0,0,0]
[null,"Emisión de registro de inscripción de calidad e inocuidad de embarcaciones para transportistas y comerciantes",318,0,0,0]
[null,"Emisión de registro de inscripción de calidad e inocuidad de establecimientos",404,0,0,0]
[null,"Revisión de documento de formularios, monografías, y fichas técnicas para los diferentes mercados",38,0,0,0]
[null,"Verificación de control zoosanitario en importación y aclimatación de organismos vivos acuícolas",39,0,0,0]
[null,"Verificación regulatoria sanitaria",2102,0,0,0]
[null,"Asistencia técnica pesquera artesanal",55,0,0,0]
[null,"Emisión de permiso de pesca para embarcaciones artesanales",2217,0,0,0]
[null,"Emisión de permiso para comerciante mayorista y minorista de productos pesqueros",1799,0,0,0]
[null,"Emisión de permiso para pescador artesanal",2425,0,0,0]
[null,"Autorización para la comercialización interna de productos acuícolas procesados importados",5,0,0,0]
[null,"Autorización o clasificación para el establecimiento y funcionamiento de laboratorios de especies bioacuáticas",39,0,0,0]
[null,"Asistencia técnica en infraestructura, producción y buenas prácticas acuícolas",515,0,0,0]
[null,"Autorización de importación de especies acuícolas vivas",1,0,0,0]
[null,"Autorización de importación para productos frescos o congelados",29,0,0,0]
[null,"Autorización de uso de marca para exportación de productos acuícolas",13,0,0,0]
[null,"Autorización para ejercer actividades conexas de importación de insumos de uso acuícola",7,0,0,0]
[null,"Autorización para el cultivo de especies bioacuáticas en tierras altas",142,0,0,0]
[null,"Autorización para la comercialización interna de productos acuícolas en fase de cultivo o procesamiento",34,0,0,0]
[null,"Autorización para la exportación de alimento balanceado de uso acuícola",0.01,0,0,0]
[null,"Autorización para productos de prohibida exportación y sujeta a autorización previa",372,0,0,0]
[null,"Autorización y/o clasificación para ejercer actividades conexas de fabricación nacional",27,0,0,0]
[null,"Clasificación bajo la modalidad de copacking para empresas acuícolas",2,0,0,0]
[null,"Clasificación de plantas procesadoras, empacadoras, productos y subproductos acuícolas",37,0,0,0]
[null,"Concesión de espacios marítimos jurisdiccionales para el ejercicio de la actividad de la maricultura",0.01,0,0,0]
[null,"Emisión de certificado de acreditación de origen legal para productos acuícolas",180,0,0,0]
[null,"Emisión de acta de producción efectiva acuícola",39,0,0,0]
[null,"Emisión de certificado geográfico y estudios de cobertura para camaroneras y predios",864,0,0,0]
[null,"Emisión de declaración de exportación de camarón a Estados Unidos de América (Form DSP-121)",1830,0,0,0]
[null,"Asignación de contingente para importación de azúcar blanco originario de la Comunidad Andina en el marco de la Resolución Nro 020 2018 del COMEX",93,0,0,0]
[null,"Autorización de importación de insumos de uso acuícola",105,0,0,0]
[null,"Emisión de certificado de procedencia para post larvas y nauplios",0.01,0,0,0]
[null,"Aprobación de planillas A y B de autopartes de ensambladoras Ecuatorianas para exportación",401,0,0,0]
[null,"Acceso a la información pública del Ministerio de Producción, Comercio Exterior, Inversiones y Pesca",224,19,8.48E-2,10]
[null,"Autorización de importación para garantizar la calidad e inocuidad de productos de uso acuícola",133,0,0,0]
[null,"Emisión de certificado para establecimientos",972,0,0,0]
[null,"Análisis microbiológicos de insumos acuícolas",5326,0,0,0]
[null,"Análisis físico, químico y microbiológico de productos pesqueros, acuícolas, agua, superficie y sedimentos",30503,0,0,0]
[null,"Análisis virales de productos e insumos acuícolas",76749,0,0,0]
[null,"Emisión de certificado de Origen de productos originarios de Ecuador para exportación",134454,0,0,0]
[null,"Autorización de cesión derechos concesión ejercer la cría y cultivo especies bioacuáticas zonas de playa y bahía",54,0,0,0]
[null,"Concesión zonas de playa y bahía para ejercer la cría y cultivo especies bioacuáticas",22,0,0,0]
[null,"Emisión de Certificado de Procedimientos Acuícolas",401,0,0,0]
[null,"Renovación derechos concesión y autorización ejercer la cria y cultivo especies bioacuáticas zonas playa y bahía",134,0,0,0]
[null,"Emisión de certificado de registro sanitario unificado",452,0,0,0]
[null,"Reemisión de certificado de registro sanitario unificado",174,0,0,0]
[null,"Emisión de certificado sanitario de importación",8977,0,0,0]
[null,"Emisión de certificado sanitario de importación MSVC",154,0,0,0]
[null,"Emisión o remisión de certificado sanitario de exportación de productos pesqueros y acuícolas",16218,0,0,0]
[null,"Autorización del ejercicio de la actividad pesquera extractiva para embarcaciones artesanales nodrizas",33,0,0,0]
[null,"Autorización para construcción de embarcaciones pesqueras artesanales",16,0,0,0]
[null,"Autorización para reconstrucción y o modificación de embarcaciones pesqueras artesanales",92,0,0,0]
[null,"Autorización de exenciones de tránsito para embarcaciones pesqueras industriales atuneras registradas en la CIAT",50,0,0,0]
[null,"Autorización de  exportación de productos pesqueros sujetos a restricciones tiburones",37,0,0,0]
[null,"Autorización previo a la celebración de contrato de arrendamiento o asociación para embarcaciones pesqueras extranjeras - anuencia",0.01,0,0,0]
[null,"Autorización previa para la importación y posterior nacionalización de embarcaciones pesqueras industriales - anuencia ",1,0,0,0]
[null,"Emisión de permiso de pesca para embarcación deportiva",1,0,0,0]
[null,"Emisión de permiso para establecimientos comerciales",1,0,0,0]
[null,"Autorización para reconstrucción y/o modificación de embarcaciones pesqueras industriales",2,0,0,0]
[null,"Autorización de uso de marca para exportación de productos pesqueros",3,0,0,0]
[null,"Asistencia técnica pesquera industrial",5,0,0,0]
[null,"Autorización del ejercicio de la actividad pesquera para empresas procesadoras con modalidad copacking",6,0,0,0]
[null,"Autorización para celebrar contrato de arrendamiento o asociación para embarcaciones pesqueras extranjeras",6,0,0,0]
[null,"Emisión de certificado FAD FREE",10,0,0,0]
[null,"Autorización del ejercicio de la actividad pesquera extractiva bajo contrato de asociación o arrendamiento para embarcaciones industriales extranjeras",14,0,0,0]
[null,"Autorización del ejercicio de la actividad pesquera para empresas comercializadoras",19,0,0,0]
[null,"Autorización de exención de tránsito en periodos de veda a embarcaciones pesqueras industriales",22,0,0,0]
[null,"Autorización del ejercicio de la actividad pesquera para empresas procesadoras y comercializadoras",22,0,0,0]
[null,"Autorización para construcción de embarcaciones pesqueras industriales",42,0,0,0]
[null,"Emisión de certificado de declaración de pesca importada sin procesamiento",46,0,0,0]
[null,"Autorización de exportación de productos pesqueros no túnidos",50,0,0,0]
[null,"Autorización del ejercicio de la actividad pesquera extractiva para embarcaciones industriales",66,0,0,0]
[null,"Emisión de certificado de TEDs",72,0,0,0]
[null,"Emisión de permiso de pesca para embarcación industrial asociada",87,0,0,0]
[null,"Emisión de acta de producción efectiva pesquera",149,0,0,0]
[null,"Emisión de certificado de captura para productos pesqueros nacionales sin procesamiento",264,0,0,0]
[null,"Emisión de certificado de validación del documento estadístico de productos pesqueros para re-exportación",273,0,0,0]
[null,"Emisión de certificado Dolphin Safe a embarcaciones industriales pesqueras",300,0,0,0]
[null,"Emisión de certificado de captura simplificada de productos pesqueros",516,0,0,0]
[null,"Emisión de certificado de validación del documento estadístico de productos pesqueros para exportación",696,0,0,0]
[null,"Emisión de certificado de acreditación de origen legal para productos pesqueros",996,0,0,0]
[null,"Autorización para la importación de productos de la pesca, procesados y harina de pescado",1078,0,0,0]
[null,"Emisión de permiso de pesca para embarcación industrial nacional",1167,0,0,0]
[null,"Emisión de certificado de registro de control interno de captura a embarcaciones pesqueras industriales",1501,0,0,0]
[null,"Emisión de permiso para pescador industrial",2350,0,0,0]
[null,"Emisión de certificado de declaración de pesca importada con procesamiento",3039,0,0,0]
[null,"Emisión de certificado de captura para productos pesqueros nacionales con procesamiento",5061,0,0,0]

{"sheet":"COSTO ADMINISTRACIÓN PÚBLICA","index":3,"n_rows":144,"n_cols":9,"rows_kept":144,"cut":false,"hidden":false,"merged":[[0,0,0,5],[1,0,1,5],[3,0,4,0],[3,1,4,1],[3,2,3,4],[3,5,4,5]]}
["PRIORIZACIÓN DE TRÁMITES ADMINISTRATIVOS"]
["COSTOS PARA LA ADMINISTRACIÓN PÚBLICA"]
[]
["IDENTIFICADOR","TRÁMITE","INSUMOS PARA COSTO",null,null,"COSTO PARA LA ADM. PÚBLICA",null,"SBU",400]
[null,null,"TIEMPO (HORAS)","COSTO PERSONAL","COSTO RECURSOS"]
[null,"Aprobación de Estatuto y reconocimiento de personalidad jurídica",120,{"$f":"C6*$I$4/160","v":300},44.4,{"$f":"D6+E6","v":344.4}]
[null,"Reforma y codificación de los Estatutos",120,{"$f":"C7*$I$4/160","v":300},44.4,{"$f":"D7+E7","v":344.4}]
[null,"Disolución y liquidación por causal de las organizaciones sociales",120,300,44.4,344.4]
[null,"Registro de Directiva de la Organización Social",120,300,44.4,344.4]
[null,"Registro de Inclusión o exclusión de miembros de la Organización Social",120,300,44.4,344.4]
[null,"Disolución y liquidación voluntaria de las organizaciones sociales",120,{"$f":"C11*$I$4/160","v":300},44.4,{"$f":"D11+E11","v":344.4}]
[null,"Emisión de registro de Comercializadores de Bienes de Producción Nacional (SBPN)",0.25,0.625,9.2499999999999999E-2,0.71750000000000003]
[null,"Emisión de Registro de Producción Nacional",32,80,11.84,91.84]
[null,"Atención de denuncias por infracciones u omisiones a la Ley del Sistema Ecuatoriano de la Calidad ",480,1200,177.6,1377.6]
[null,"Atención de quejas por infracciones u omisiones a la Ley Orgánica de Defensa del Consumidor",24,60,5.92,65.92]
[null,"Autorización de etiquetado y/o reetiquetado de mercancías sujetas a reglamentación técnica",16,40,5.92,45.92]
[null,"Emisión de Registro de certificados de conformidad",24,60,26.64,86.64]
[null,"Emisión de Registro a personas naturales o jurídicas que deseen brindar el servicio para ejecutar el proceso de etiquetado y/o reetiquetado",16,40,5.92,45.92]
[null,"Designación de Organismos de Evaluación de la Conformidad",16,40,5.92,45.92]
[null,"Emisión de licencias de importación de CKD de vehículos",0.33333333333333331,0.83333333333333326,0.1221,0.95543333333333325]
[null,"Autorización de licencias para importadores de productos remanufacturados",0.33333333333333331,0.83333333333333326,0.1221,0.95543333333333325]
[null,"Autorización de nuevos modelos y versiones de CKD",24,60,44.4,104.4]
[null,"Autorización para importación de prototipos",24,60,8.879999999999999,68.88]
[null,"Emisión de certificado de existencia o no de Producción Nacional",120,300,44.4,344.4]
[null,"Emisión de Registro de clave de exportación de café",24,60,8.879999999999999,68.88]
[null,"Emisión de Registro de exportador de chatarra",0.41666666666666669,1.0416666666666667,0.15428999999999998,1.1959566666666668]
[null,"Emisión de Registro de importación de materia prima industrial",0.41666666666666669,1.0416666666666667,0.15428999999999998,1.1959566666666668]
[null,"Emisión de Registro de importadores de sal",0.5,1.25,0.185,1.4350000000000001]
[null,"Inclusión de nuevos fabricantes/proveedores de CKD",56,140,20.72,160.72]
[null,"Calificación partes nacionales como Material originario ecuatoriano (MOE) a ser aplicado en el registro y operación de empresas ensambladoras",3,7.5,1.1099999999999999,8.61]
[null,"Emisión de Registro industrial de productores farmacéuticos (RIPF) ",128,320,47.36,367.36]
[null,"Emisión de Registro de Ensambladoras ",24,60,44.4,104.4]
[null,"Emisión de Registro para la importación de textiles y calzado ",0.41666666666666669,1.0416666666666667,0.15428999999999998,1.1959566666666668]
[null,"Autorización de Administradores de Zonas Especiales de Desarrollo Económicos",80,200,44.4,244.4]
[null,"Calificación de Operadores de Zonas Especiales de Desarrollo Económico",80,200,44.4,244.4]
[null,"Emisión de dictamen para autorización de Servicios de Apoyo en Zonas Especiales de Desarrollo Económico",80,200,44.4,244.4]
[null,"Inscripción de nuevos programas de maquila",80,200,44.4,244.4]
[null,"Ampliación o cancelación de programas de maquila",120,300,44.4,344.4]
[null,"Emisión de Registro de maquiladoras",80,200,20.72,220.72]
[null,"Autorización de Licencias de importación / exportación de sustancias Hidrofluorocarbonadas (HFC)",8,20,2.96,22.96]
[null,"Autorización de licencias para importación / exportación de sustancias agotadoras de la capa de ozono (HCFC)",8,20,2.96,22.96]
[null,"Emisión de Registro de importadores de neumáticos",24,60,0.74,60.74]
[null,"Emisión de Registro de empresas reencauchadoras",56,140,20.72,160.72]
[null,"Emisión de Registro de centros de acopio para acceder al impuesto redimible a la botella plástica no retornable PET",32,80,11.84,91.84]
[null,"Emisión de Registro de embotelladores para acceder al impuesto redimible a la botella plástica no retornable PET",32,80,11.84,91.84]
[null,"Emisión de Registro de importadores para acceder al impuesto redimible a la botella plástica no retornable PET",32,80,20.72,100.72]
[null,"Emisión de Registro de recicladores para acceder al impuesto redimible a la botella plástica no retornable PET",32,80,11.84,91.84]
[null,"Emisión de Registro para ejecutar el proceso de chatarrización de bienes del sector público",56,140,20.72,160.72]
[null,"Asesoría a emprendedores en unidades productivas",24,60,8.879999999999999,68.88]
[null,"Asistencia técnica para  proyectos de innovación productiva (MiproLab)",24,60,8.879999999999999,68.88]
[null,"Asistencia técnica para el diseño gráfico y productos para las MIPYMES y artesanos ",56,140,20.72,160.72]
[null,"Emisión de Registro Nacional de Emprendimiento",0.5,1.25,0.185,1.4350000000000001]
[null,"Emisión de Registro Único de Mipymes",8.3333333333333329E-2,0.20833333333333331,3.0710000000000001E-2,0.23904333333333333]
[null,"Emisión de Registro Único Artesanal",8.3333333333333329E-2,0.20833333333333331,3.0710000000000001E-2,0.23904333333333333]
[null,"Emisión de certificaciones para productos pesqueros y acuícolas",5,{"$f":"C55*$I$4/160","v":12.5},1.85,{"$f":"D55+E55","v":14.35}]
[null,"Emisión de certificado de calidad de los productos pesqueros y acuícolas",9.3000000000000007,23.250000000000004,3.4410000000000003,26.691000000000003]
[null,"Emisión de certificado sanitario y/o de calidad traducido",4,10,1.48,11.48]
[null,"Emisión de registro de inscripción de calidad e inocuidad de embarcaciones",2,5,1.5,6.5]
[null,"Emisión de registro de inscripción de calidad e inocuidad de embarcaciones para transportistas y comerciantes",2,5,1.5,6.5]
[null,"Emisión de registro de inscripción de calidad e inocuidad de establecimientos",2,5,1.5,6.5]
[null,"Revisión de documento de formularios, monografías, y fichas técnicas para los diferentes mercados",37,92.5,1.5,94]
[null,"Verificación de control zoosanitario en importación y aclimatación de organismos vivos acuícolas",124,310,7.5,317.5]
[null,"Verificación regulatoria sanitaria",10,25,4.5,29.5]
[null,"Asistencia técnica pesquera artesanal",33.67,84.174999999999997,12.4579,96.632899999999992]
[null,"Emisión de permiso de pesca para embarcaciones artesanales",35.369999999999997,88.424999999999983,19.453500000000002,107.87849999999999]
[null,"Emisión de permiso para comerciante mayorista y minorista de productos pesqueros",1.28,3.2,0.70400000000000007,3.9040000000000004]
[null,"Emisión de permiso para pescador artesanal",1.45,3.625,0.9425,4.5674999999999999]
[null,"Autorización para la comercialización interna de productos acuícolas procesados importados",480,1200,{"$f":"+C68*0.37","v":177.6},1377.6]
[null,"Autorización o clasificación para el establecimiento y funcionamiento de laboratorios de especies bioacuáticas",320,800,{"$f":"+C69*0.37","v":118.4},918.4]
[null,"Asistencia técnica en infraestructura, producción y buenas prácticas acuícolas",32,80,{"$f":"+C70*0.37","v":11.84},91.84]
[null,"Autorización de importación de especies acuícolas vivas",16,40,5.92,45.92]
[null,"Autorización de importación para productos frescos o congelados",16,40,5.92,45.92]
[null,"Autorización de uso de marca para exportación de productos acuícolas",8,20,2.96,22.96]
[null,"Autorización para ejercer actividades conexas de importación de insumos de uso acuícola",56,140,20.72,160.72]
[null,"Autorización para el cultivo de especies bioacuáticas en tierras altas",480,1200,177.6,1377.6]
[null,"Autorización para la comercialización interna de productos acuícolas en fase de cultivo o procesamiento",480,1200,177.6,1377.6]
[null,"Autorización para la exportación de alimento balanceado de uso acuícola",16,40,5.92,45.92]
[null,"Autorización para productos de prohibida exportación y sujeta a autorización previa",16,40,5.92,45.92]
[null,"Autorización y/o clasificación para ejercer actividades conexas de fabricación nacional",480,1200,177.6,1377.6]
[null,"Clasificación bajo la modalidad de copacking para empresas acuícolas",480,1200,177.6,1377.6]
[null,"Clasificación de plantas procesadoras, empacadoras, productos y subproductos acuícolas",320,800,118.4,918.4]
[null,"Concesión de espacios marítimos jurisdiccionales para el ejercicio de la actividad de la maricultura",480,1200,177.6,1377.6]
[null,"Emisión de certificado de acreditación de origen legal para productos acuícolas",16,40,5.92,45.92]
[null,"Emisión de acta de producción efectiva acuícola",56,140,20.72,160.72]
[null,"Emisión de certificado geográfico y estudios de cobertura para camaroneras y predios",40,100,14.8,114.8]
[null,"Emisión de declaración de exportación de camarón a Estados Unidos de América (Form DSP-121)",16,40,5.92,45.92]
[null,"Acceso a la información pública del Ministerio de Producción, Comercio Exterior, Inversiones y Pesca",24,60,8.879999999999999,68.88]
[null,"Emisión de certificado de Origen de productos originarios de Ecuador para exportación",8,20,2.96,22.96]
[null,"Aprobación de planillas A y B de autopartes de ensambladoras Ecuatorianas para exportación",240,600,88.8,688.8]
[null,"Asignación de contingente para importación de azúcar blanco originario de la Comunidad Andina en el marco de la Resolución Nro 020 2018 del COMEX",80,200,29.6,229.6]
[null,"Autorización de importación de insumos de uso acuícola",16,40,5.92,45.92]
[null,"Análisis físico, químico y microbiológico de productos pesqueros, acuícolas, agua, superficie y sedimentos",48,120,17.759999999999998,137.76]
[null,"Análisis microbiológicos de insumos acuícolas",48,120,17.759999999999998,137.76]
[null,"Análisis virales de productos e insumos acuícolas",48,120,17.759999999999998,137.76]
[null,"Autorización de importación para garantizar la calidad e inocuidad de productos de uso acuícola",48,120,17.759999999999998,137.76]
[null,"Emisión de certificado de procedencia para post larvas y nauplios",48,120,17.759999999999998,137.76]
[null,"Emisión de certificado para establecimientos",24,60,8.879999999999999,68.88]
[null,"Autorización de cesión derechos concesión ejercer la cría y cultivo especies bioacuáticas zonas de playa y bahía",9.6999999999999993,24.249999999999996,8.8800000000000008,33.129999999999995]
[null,"Concesión zonas de playa y bahía para ejercer la cría y cultivo especies bioacuáticas",60,150,22.2,{"$f":"D99+E99","v":172.2}]
[null,"Emisión de Certificado de Procedimientos Acuícolas",93.28,233.2,34.51,267.70999999999998]
[null,"Renovación derechos concesión y autorización ejercer la cria y cultivo especies bioacuáticas zonas playa y bahía",16,40,5.92,45.92]
[null,"Emisión de certificado de registro sanitario unificado",130.53,326.32499999999999,48.3,374.625]
[null,"Reemisión de certificado de registro sanitario unificado",125.7,314.25,46.51,360.76]
[null,"Emisión de certificado sanitario de importación",8,20,2.96,22.96]
[null,"Emisión de certificado sanitario de importación MSVC",4,10,1.48,11.48]
[null,"Emisión o remisión de certificado sanitario de exportación de productos pesqueros y acuícolas",87,217.5,32.19,249.69]
[null,"Autorización del ejercicio de la actividad pesquera extractiva para embarcaciones artesanales nodrizas",8,20,2.96,22.96]
[null,"Autorización para construcción de embarcaciones pesqueras artesanales",60,150,22.2,172.2]
[null,"Autorización para reconstrucción y o modificación de embarcaciones pesqueras artesanales",9.6999999999999993,24.249999999999996,8.8800000000000008,33.129999999999995]
[null,"Autorización de exenciones de tránsito para embarcaciones pesqueras industriales atuneras registradas en la CIAT",4,10,1.48,11.48]
[null,"Autorización de  exportación de productos pesqueros sujetos a restricciones tiburones",60,150,22.2,172.2]
[null,"Autorización previo a la celebración de contrato de arrendamiento o asociación para embarcaciones pesqueras extranjeras - anuencia",150,{"$f":"C112*$I$4/160","v":375},1.5,{"$f":"D112+E112","v":376.5}]
[null,"Autorización previa para la importación y posterior nacionalización de embarcaciones pesqueras industriales - anuencia ",120,300,1.5,301.5]
[null,"Emisión de permiso de pesca para embarcación deportiva",50,125,18.5,143.5]
[null,"Emisión de permiso para establecimientos comerciales",24,60,4.4400000000000004,64.44]
[null,"Autorización para reconstrucción y/o modificación de embarcaciones pesqueras industriales",175,437.5,64.75,502.25]
[null,"Autorización de uso de marca para exportación de productos pesqueros",16,40,6.66,46.66]
[null,"Asistencia técnica pesquera industrial",5,12.5,1.5,14]
[null,"Autorización del ejercicio de la actividad pesquera para empresas procesadoras con modalidad copacking",175,437.5,64.75,502.25]
[null,"Autorización para celebrar contrato de arrendamiento o asociación para embarcaciones pesqueras extranjeras",120,300,11.1,311.10000000000002]
[null,"Emisión de certificado FAD FREE",15,37.5,5.18,42.68]
[null,"Autorización del ejercicio de la actividad pesquera extractiva bajo contrato de asociación o arrendamiento para embarcaciones industriales extranjeras",160,400,64.75,464.75]
[null,"Autorización del ejercicio de la actividad pesquera para empresas comercializadoras",175,437.5,64.75,502.25]
[null,"Autorización de exención de tránsito en periodos de veda a embarcaciones pesqueras industriales",30,75,7.4,82.4]
[null,"Autorización del ejercicio de la actividad pesquera para empresas procesadoras y comercializadoras",175,437.5,64.75,502.25]
[null,"Autorización para construcción de embarcaciones pesqueras industriales",85,212.5,64.75,277.25]
[null,"Emisión de certificado de declaración de pesca importada sin procesamiento",24,60,8.8800000000000008,68.88]
[null,"Autorización de exportación de productos pesqueros no túnidos",24,60,8.6999999999999993,68.7]
[null,"Autorización del ejercicio de la actividad pesquera extractiva para embarcaciones industriales",160,400,64.75,464.75]
[null,"Emisión de certificado de TEDs",45,112.5,5.92,118.42]
[null,"Emisión de permiso de pesca para embarcación industrial asociada",50,125,18.5,143.5]
[null,"Emisión de acta de producción efectiva pesquera",50,125,5.92,130.91999999999999]
[null,"Emisión de certificado de captura para productos pesqueros nacionales sin procesamiento",24,60,8.8800000000000008,68.88]
[null,"Emisión de certificado de validación del documento estadístico de productos pesqueros para re-exportación",24,60,3.33,63.33]
[null,"Emisión de certificado Dolphin Safe a embarcaciones industriales pesqueras",16,40,3.33,43.33]
[null,"Emisión de certificado de captura simplificada de productos pesqueros",24,60,8.8800000000000008,68.88]
[null,"Emisión de certificado de validación del documento estadístico de productos pesqueros para exportación",24,60,3.33,63.33]
[null,"Emisión de certificado de acreditación de origen legal para productos pesqueros",16,40,2.2200000000000002,42.22]
[null,"Autorización para la importación de productos de la pesca, procesados y harina de pescado",24,60,8.8800000000000008,68.88]
[null,"Emisión de permiso de pesca para embarcación industrial nacional",50,125,18.5,143.5]
[null,"Emisión de certificado de registro de control interno de captura a embarcaciones pesqueras industriales",12,30,1.5,31.5]
[null,"Emisión de permiso para pescador industrial",1,2.5,1.5,4]
[null,"Emisión de certificado de declaración de pesca importada con procesamiento",24,60,8.8800000000000008,68.88]
[null,"Emisión de certificado de captura para productos pesqueros nacionales con procesamiento",24,60,8.8800000000000008,68.88]

{"sheet":"RESUMEN DE COSTOS AP","index":4,"n_rows":143,"n_cols":4,"rows_kept":143,"cut":false,"hidden":false,"merged":[[0,0,0,5],[1,0,1,5]]}
["PRIORIZACIÓN DE TRÁMITES ADMINISTRATIVOS"]
["COSTOS PARA LA ADMINISTRACIÓN PÚBLICA"]
[]
["IDENTIFICADOR","TRÁMITE","COSTO PARA LA ADM. PÚBLICA","PUNTUACIÓN"]
[null,"Emisión de Registro Único Artesanal",0.23904333333333333,5]
[null,"Emisión de Registro Único de Mipymes",0.23904333333333333,5]
[null,"Emisión de registro de Comercializadores de Bienes de Producción Nacional (SBPN)",0.71750000000000003,5]
[null,"Autorización de licencias para importadores de productos remanufacturados",0.95543333333333325,5]
[null,"Emisión de licencias de importación de CKD de vehículos",0.95543333333333325,5]
[null,"Emisión de Registro de exportador de chatarra",1.1959566666666668,5]
[null,"Emisión de Registro de importación de materia prima industrial",1.1959566666666668,5]
[null,"Emisión de Registro para la importación de textiles y calzado ",1.1959566666666668,5]
[null,"Emisión de Registro de importadores de sal",1.4350000000000001,5]
[null,"Emisión de Registro Nacional de Emprendimiento",1.4350000000000001,5]
[null,"Emisión de permiso para comerciante mayorista y minorista de productos pesqueros",3.9040000000000004,5]
[null,"Emisión de permiso para pescador industrial",4,5]
[null,"Emisión de permiso para pescador artesanal",4.5674999999999999,5]
[null,"Emisión de registro de inscripción de calidad e inocuidad de embarcaciones",6.5,5]
[null,"Emisión de registro de inscripción de calidad e inocuidad de embarcaciones para transportistas y comerciantes",6.5,5]
[null,"Emisión de registro de inscripción de calidad e inocuidad de establecimientos",6.5,5]
[null,"Calificación partes nacionales como Material originario ecuatoriano (MOE) a ser aplicado en el registro y operación de empresas ensambladoras",8.61,5]
[null,"Autorización de exenciones de tránsito para embarcaciones pesqueras industriales atuneras registradas en la CIAT",11.48,5]
[null,"Emisión de certificado sanitario de importación MSVC",11.48,5]
[null,"Emisión de certificado sanitario y/o de calidad traducido",11.48,5]
[null,"Asistencia técnica pesquera industrial",14,5]
[null,"Emisión de certificaciones para productos pesqueros y acuícolas",14.35,5]
[null,"Autorización de Licencias de importación / exportación de sustancias Hidrofluorocarbonadas (HFC)",22.96,5]
[null,"Autorización de licencias para importación / exportación de sustancias agotadoras de la capa de ozono (HCFC)",22.96,5]
[null,"Autorización de uso de marca para exportación de productos acuícolas",22.96,5]
[null,"Autorización del ejercicio de la actividad pesquera extractiva para embarcaciones artesanales nodrizas",22.96,5]
[null,"Emisión de certificado de Origen de productos originarios de Ecuador para exportación",22.96,5]
[null,"Emisión de certificado sanitario de importación",22.96,5]
[null,"Emisión de certificado de calidad de los productos pesqueros y acuícolas",26.691000000000003,5]
[null,"Verificación regulatoria sanitaria",29.5,5]
[null,"Emisión de certificado de registro de control interno de captura a embarcaciones pesqueras industriales",31.5,5]
[null,"Autorización de cesión derechos concesión ejercer la cría y cultivo especies bioacuáticas zonas de playa y bahía",33.129999999999995,5]
[null,"Autorización para reconstrucción y o modificación de embarcaciones pesqueras artesanales",33.129999999999995,5]
[null,"Emisión de certificado de acreditación de origen legal para productos pesqueros",42.22,5]
[null,"Emisión de certificado FAD FREE",42.68,5]
[null,"Emisión de certificado Dolphin Safe a embarcaciones industriales pesqueras",43.33,5]
[null,"Autorización de etiquetado y/o reetiquetado de mercancías sujetas a reglamentación técnica",45.92,5]
[null,"Autorización de importación de especies acuícolas vivas",45.92,5]
[null,"Autorización de importación de insumos de uso acuícola",45.92,5]
[null,"Autorización de importación para productos frescos o congelados",45.92,5]
[null,"Autorización para la exportación de alimento balanceado de uso acuícola",45.92,5]
[null,"Autorización para productos de prohibida exportación y sujeta a autorización previa",45.92,5]
[null,"Designación de Organismos de Evaluación de la Conformidad",45.92,5]
[null,"Emisión de certificado de acreditación de origen legal para productos acuícolas",45.92,5]
[null,"Emisión de declaración de exportación de camarón a Estados Unidos de América (Form DSP-121)",45.92,5]
[null,"Emisión de Registro a personas naturales o jurídicas que deseen brindar el servicio para ejecutar el proceso de etiquetado y/o reetiquetado",45.92,5]
[null,"Renovación derechos concesión y autorización ejercer la cria y cultivo especies bioacuáticas zonas playa y bahía",45.92,5]
[null,"Autorización de uso de marca para exportación de productos pesqueros",46.66,10]
[null,"Emisión de Registro de importadores de neumáticos",60.74,10]
[null,"Emisión de certificado de validación del documento estadístico de productos pesqueros para exportación",63.33,10]
[null,"Emisión de certificado de validación del documento estadístico de productos pesqueros para re-exportación",63.33,10]
[null,"Emisión de permiso para establecimientos comerciales",64.44,10]
[null,"Atención de quejas por infracciones u omisiones a la Ley Orgánica de Defensa del Consumidor",65.92,10]
[null,"Autorización de exportación de productos pesqueros no túnidos",68.7,10]
[null,"Acceso a la información pública del Ministerio de Producción, Comercio Exterior, Inversiones y Pesca",68.88,10]
[null,"Asesoría a emprendedores en unidades productivas",68.88,10]
[null,"Asistencia técnica para  proyectos de innovación productiva (MiproLab)",68.88,10]
[null,"Autorización para importación de prototipos",68.88,10]
[null,"Autorización para la importación de productos de la pesca, procesados y harina de pescado",68.88,10]
[null,"Emisión de certificado de captura para productos pesqueros nacionales con procesamiento",68.88,10]
[null,"Emisión de certificado de captura para productos pesqueros nacionales sin procesamiento",68.88,10]
[null,"Emisión de certificado de captura simplificada de productos pesqueros",68.88,10]
[null,"Emisión de certificado de declaración de pesca importada con procesamiento",68.88,10]
[null,"Emisión de certificado de declaración de pesca importada sin procesamiento",68.88,10]
[null,"Emisión de certificado para establecimientos",68.88,10]
[null,"Emisión de Registro de clave de exportación de café",68.88,10]
[null,"Autorización de exención de tránsito en periodos de veda a embarcaciones pesqueras industriales",82.4,10]
[null,"Emisión de Registro de certificados de conformidad",86.64,10]
[null,"Asistencia técnica en infraestructura, producción y buenas prácticas acuícolas",91.84,10]
[null,"Emisión de Registro de centros de acopio para acceder al impuesto redimible a la botella plástica no retornable PET",91.84,10]
[null,"Emisión de Registro de embotelladores para acceder al impuesto redimible a la botella plástica no retornable PET",91.84,10]
[null,"Emisión de Registro de Producción Nacional",91.84,10]
[null,"Emisión de Registro de recicladores para acceder al impuesto redimible a la botella plástica no retornable PET",91.84,10]
[null,"Revisión de documento de formularios, monografías, y fichas técnicas para los diferentes mercados",94,10]
[null,"Asistencia técnica pesquera artesanal",96.632899999999992,10]
[null,"Emisión de Registro de importadores para acceder al impuesto redimible a la botella plástica no retornable PET",100.72,10]
[null,"Autorización de nuevos modelos y versiones de CKD",104.4,10]
[null,"Emisión de Registro de Ensambladoras ",104.4,10]
[null,"Emisión de permiso de pesca para embarcaciones artesanales",107.87849999999999,10]
[null,"Emisión de certificado geográfico y estudios de cobertura para camaroneras y predios",114.8,10]
[null,"Emisión de certificado de TEDs",118.42,10]
[null,"Emisión de acta de producción efectiva pesquera",130.91999999999999,10]
[null,"Análisis físico, químico y microbiológico de productos pesqueros, acuícolas, agua, superficie y sedimentos",137.76,10]
[null,"Análisis microbiológicos de insumos acuícolas",137.76,10]
[null,"Análisis virales de productos e insumos acuícolas",137.76,10]
[null,"Autorización de importación para garantizar la calidad e inocuidad de productos de uso acuícola",137.76,10]
[null,"Emisión de certificado de procedencia para post larvas y nauplios",137.76,10]
[null,"Emisión de permiso de pesca para embarcación deportiva",143.5,10]
[null,"Emisión de permiso de pesca para embarcación industrial asociada",143.5,10]
[null,"Emisión de permiso de pesca para embarcación industrial nacional",143.5,10]
[null,"Asistencia técnica para el diseño gráfico y productos para las MIPYMES y artesanos ",160.72,10]
[null,"Autorización para ejercer actividades conexas de importación de insumos de uso acuícola",160.72,10]
[null,"Emisión de acta de producción efectiva acuícola",160.72,10]
[null,"Emisión de Registro de empresas reencauchadoras",160.72,10]
[null,"Emisión de Registro para ejecutar el proceso de chatarrización de bienes del sector público",160.72,10]
[null,"Inclusión de nuevos fabricantes/proveedores de CKD",160.72,10]
[null,"Autorización de  exportación de productos pesqueros sujetos a restricciones tiburones",172.2,20]
[null,"Autorización para construcción de embarcaciones pesqueras artesanales",172.2,20]
[null,"Concesión zonas de playa y bahía para ejercer la cría y cultivo especies bioacuáticas",172.2,20]
[null,"Emisión de Registro de maquiladoras",220.72,20]
[null,"Asignación de contingente para importación de azúcar blanco originario de la Comunidad Andina en el marco de la Resolución Nro 020 2018 del COMEX",229.6,20]
[null,"Autorización de Administradores de Zonas Especiales de Desarrollo Económicos",244.4,20]
[null,"Calificación de Operadores de Zonas Especiales de Desarrollo Económico",244.4,20]
[null,"Emisión de dictamen para autorización de Servicios de Apoyo en Zonas Especiales de Desarrollo Económico",244.4,20]
[null,"Inscripción de nuevos programas de maquila",244.4,20]
[null,"Emisión o remisión de certificado sanitario de exportación de productos pesqueros y acuícolas",249.69,20]
[null,"Emisión de Certificado de Procedimientos Acuícolas",267.70999999999998,20]
[null,"Autorización para construcción de embarcaciones pesqueras industriales",277.25,20]
[null,"Autorización previa para la importación y posterior nacionalización de embarcaciones pesqueras industriales - anuencia ",301.5,20]
[null,"Autorización para celebrar contrato de arrendamiento o asociación para embarcaciones pesqueras extranjeras",311.10000000000002,20]
[null,"Verificación de control zoosanitario en importación y aclimatación de organismos vivos acuícolas",317.5,20]
[null,"Ampliación o cancelación de programas de maquila",344.4,20]
[null,"Aprobación de Estatuto y reconocimiento de personalidad jurídica",344.4,20]
[null,"Disolución y liquidación por causal de las organizaciones sociales",344.4,20]
[null,"Disolución y liquidación voluntaria de las organizaciones sociales",344.4,20]
[null,"Emisión de certificado de existencia o no de Producción Nacional",344.4,20]
[null,"Reforma y codificación de los Estatutos",344.4,20]
[null,"Registro de Directiva de la Organización Social",344.4,20]
[null,"Registro de Inclusión o exclusión de miembros de la Organización Social",344.4,20]
[null,"Reemisión de certificado de registro sanitario unificado",360.76,20]
[null,"Emisión de Registro industrial de productores farmacéuticos (RIPF) ",367.36,20]
[null,"Emisión de certificado de registro sanitario unificado",374.625,20]
[null,"Autorización previo a la celebración de contrato de arrendamiento o asociación para embarcaciones pesqueras extranjeras - anuencia",376.5,20]
[null,"Autorización del ejercicio de la actividad pesquera extractiva bajo contrato de asociación o arrendamiento para embarcaciones industriales extranjeras",464.75,20]
[null,"Autorización del ejercicio de la actividad pesquera extractiva para embarcaciones industriales",464.75,20]
[null,"Autorización del ejercicio de la actividad pesquera para empresas comercializadoras",502.25,20]
[null,"Autorización del ejercicio de la actividad pesquera para empresas procesadoras con modalidad copacking",502.25,20]
[null,"Autorización del ejercicio de la actividad pesquera para empresas procesadoras y comercializadoras",502.25,20]
[null,"Autorización para reconstrucción y/o modificación de embarcaciones pesqueras industriales",502.25,20]
[null,"Aprobación de planillas A y B de autopartes de ensambladoras Ecuatorianas para exportación",688.8,20]
[null,"Autorización o clasificación para el establecimiento y funcionamiento de laboratorios de especies bioacuáticas",918.4,20]
[null,"Clasificación de plantas procesadoras, empacadoras, productos y subproductos acuícolas",918.4,20]
[null,"Atención de denuncias por infracciones u omisiones a la Ley del Sistema Ecuatoriano de la Calidad ",1377.6,20]
[null,"Autorización para el cultivo de especies bioacuáticas en tierras altas",1377.6,20]
[null,"Autorización para la comercialización interna de productos acuícolas en fase de cultivo o procesamiento",1377.6,20]
[null,"Autorización para la comercialización interna de productos acuícolas procesados importados",1377.6,20]
[null,"Autorización y/o clasificación para ejercer actividades conexas de fabricación nacional",1377.6,20]
[null,"Clasificación bajo la modalidad de copacking para empresas acuícolas",1377.6,20]
[null,"Concesión de espacios marítimos jurisdiccionales para el ejercicio de la actividad de la maricultura",1377.6,20]

{"sheet":"AUXILIAR COSTO ADMINISTRACIÓN","index":5,"n_rows":20,"n_cols":3,"rows_kept":20,"cut":false,"hidden":true,"merged":[[1,1,1,2]]}
[]
["TRÁMITE:"]
["NO.","ACTIVIDAD","TIEMPO (HORAS)"]
[1]
[2]
[3]
[4]
[5]
[6]
[7]
[8]
[9]
[10]
[11]
[12]
[13]
[14]
[15]
[]
[null,"SUMATORIA ACTIVIDADES",{"$f":"SUM(C4:C19)","v":0}]

{"sheet":"TIEMPO DE RESPUESTA","index":6,"n_rows":143,"n_cols":4,"rows_kept":143,"cut":false,"hidden":false,"merged":[[0,0,0,3],[1,0,1,3]]}
["PRIORIZACIÓN DE TRÁMITES ADMINISTRATIVOS"]
["TIEMPO DE RESPUESTA"]
[]
["IDENTIFICADOR","TRÁMITE","TIEMPO RESPUESTA (horas laborables)","PUNTUACIÓN"]
[null,"Aprobación de Estatuto y reconocimiento de personalidad jurídica",120,30]
[null,"Reforma y codificación de los Estatutos",120,30]
[null,"Disolución y liquidación por causal de las organizaciones sociales",120,30]
[null,"Registro de Directiva de la Organización Social",120,30]
[null,"Registro de Inclusión o exclusión de miembros de la Organización Social",120,30]
[null,"Disolución y liquidación voluntaria de las organizaciones sociales",120,30]
[null,"Emisión de registro de Comercializadores de Bienes de Producción Nacional (SBPN)",0.25,0]
[null,"Emisión de Registro de Producción Nacional",32,0]
[null,"Atención de denuncias por infracciones u omisiones a la Ley del Sistema Ecuatoriano de la Calidad ",480,30]
[null,"Atención de quejas por infracciones u omisiones a la Ley Orgánica de Defensa del Consumidor",24,0]
[null,"Autorización de etiquetado y/o reetiquetado de mercancías sujetas a reglamentación técnica",16,0]
[null,"Emisión de Registro de certificados de conformidad",24,0]
[null,"Emisión de Registro a personas naturales o jurídicas que deseen brindar el servicio para ejecutar el proceso de etiquetado y/o reetiquetado",16,0]
[null,"Designación de Organismos de Evaluación de la Conformidad",16,0]
[null,"Emisión de licencias de importación de CKD de vehículos",0.33333333333333331,0]
[null,"Autorización de licencias para importadores de productos remanufacturados",0.33333333333333331,0]
[null,"Autorización de nuevos modelos y versiones de CKD",24,0]
[null,"Autorización para importación de prototipos",24,0]
[null,"Emisión de certificado de existencia o no de Producción Nacional",120,30]
[null,"Emisión de Registro de clave de exportación de café",24,0]
[null,"Emisión de Registro de exportador de chatarra",0.41666666666666669,0]
[null,"Emisión de Registro de importación de materia prima industrial",0.41666666666666669,0]
[null,"Emisión de Registro de importadores de sal",0.5,0]
[null,"Inclusión de nuevos fabricantes/proveedores de CKD",56,30]
[null,"Calificación partes nacionales como Material originario ecuatoriano (MOE) a ser aplicado en el registro y operación de empresas ensambladoras",3,0]
[null,"Emisión de Registro industrial de productores farmacéuticos (RIPF) ",128,30]
[null,"Emisión de Registro de Ensambladoras ",24,0]
[null,"Emisión de Registro para la importación de textiles y calzado ",0.41666666666666669,0]
[null,"Autorización de Administradores de Zonas Especiales de Desarrollo Económicos",80,30]
[null,"Calificación de Operadores de Zonas Especiales de Desarrollo Económico",80,30]
[null,"Emisión de dictamen para autorización de Servicios de Apoyo en Zonas Especiales de Desarrollo Económico",80,30]
[null,"Inscripción de nuevos programas de maquila",80,30]
[null,"Ampliación o cancelación de programas de maquila",120,30]
[null,"Emisión de Registro de maquiladoras",80,30]
[null,"Autorización de Licencias de importación / exportación de sustancias Hidrofluorocarbonadas (HFC)",8,0]
[null,"Autorización de licencias para importación / exportación de sustancias agotadoras de la capa de ozono (HCFC)",8,0]
[null,"Emisión de Registro de importadores de neumáticos",24,0]
[null,"Emisión de Registro de empresas reencauchadoras",56,30]
[null,"Emisión de Registro de centros de acopio para acceder al impuesto redimible a la botella plástica no retornable PET",32,0]
[null,"Emisión de Registro de embotelladores para acceder al impuesto redimible a la botella plástica no retornable PET",32,0]
[null,"Emisión de Registro de importadores para acceder al impuesto redimible a la botella plástica no retornable PET",32,0]
[null,"Emisión de Registro de recicladores para acceder al impuesto redimible a la botella plástica no retornable PET",32,0]
[null,"Emisión de Registro para ejecutar el proceso de chatarrización de bienes del sector público",56,30]
[null,"Asesoría a emprendedores en unidades productivas",24,0]
[null,"Asistencia técnica para  proyectos de innovación productiva (MiproLab)",24,0]
[null,"Asistencia técnica para el diseño gráfico y productos para las MIPYMES y artesanos ",56,30]
[null,"Emisión de Registro Nacional de Emprendimiento",0.5,0]
[null,"Emisión de Registro Único de Mipymes",8.3333333333333329E-2,0]
[null,"Emisión de Registro Único Artesanal",8.3333333333333329E-2,0]
[null,"Emisión de certificaciones para productos pesqueros y acuícolas",48,30]
[null,"Emisión de certificado de calidad de los productos pesqueros y acuícolas",48,30]
[null,"Emisión de certificado sanitario y/o de calidad traducido",8,0]
[null,"Emisión de registro de inscripción de calidad e inocuidad de embarcaciones",2,0]
[null,"Emisión de registro de inscripción de calidad e inocuidad de embarcaciones para transportistas y comerciantes",2,0]
[null,"Emisión de registro de inscripción de calidad e inocuidad de establecimientos",2,0]
[null,"Revisión de documento de formularios, monografías, y fichas técnicas para los diferentes mercados",37,0]
[null,"Verificación de control zoosanitario en importación y aclimatación de organismos vivos acuícolas",48,30]
[null,"Verificación regulatoria sanitaria",48,30]
[null,"Asistencia técnica pesquera artesanal",34,0]
[null,"Emisión de permiso de pesca para embarcaciones artesanales",45,30]
[null,"Emisión de permiso para comerciante mayorista y minorista de productos pesqueros",2,0]
[null,"Emisión de permiso para pescador artesanal",2,0]
[null,"Autorización para la comercialización interna de productos acuícolas procesados importados",480,30]
[null,"Autorización o clasificación para el establecimiento y funcionamiento de laboratorios de especies bioacuáticas",320,30]
[null,"Asistencia técnica en infraestructura, producción y buenas prácticas acuícolas",32,0]
[null,"Autorización de importación de especies acuícolas vivas",16,0]
[null,"Autorización de importación para productos frescos o congelados",16,0]
[null,"Autorización de uso de marca para exportación de productos acuícolas",8,0]
[null,"Autorización para ejercer actividades conexas de importación de insumos de uso acuícola",56,30]
[null,"Autorización para el cultivo de especies bioacuáticas en tierras altas",480,30]
[null,"Autorización para la comercialización interna de productos acuícolas en fase de cultivo o procesamiento",480,30]
[null,"Autorización para la exportación de alimento balanceado de uso acuícola",16,0]
[null,"Autorización para productos de prohibida exportación y sujeta a autorización previa",16,0]
[null,"Autorización y/o clasificación para ejercer actividades conexas de fabricación nacional",480,30]
[null,"Clasificación bajo la modalidad de copacking para empresas acuícolas",480,30]
[null,"Clasificación de plantas procesadoras, empacadoras, productos y subproductos acuícolas",320,30]
[null,"Concesión de espacios marítimos jurisdiccionales para el ejercicio de la actividad de la maricultura",480,30]
[null,"Emisión de certificado de acreditación de origen legal para productos acuícolas",16,0]
[null,"Emisión de acta de producción efectiva acuícola",56,30]
[null,"Emisión de certificado geográfico y estudios de cobertura para camaroneras y predios",40,0]
[null,"Emisión de declaración de exportación de camarón a Estados Unidos de América (Form DSP-121)",16,0]
[null,"Emisión de certificado de Origen de productos originarios de Ecuador para exportación",8,0]
[null,"Autorización de importación de insumos de uso acuícola",16,0]
[null,"Acceso a la información pública del Ministerio de Producción, Comercio Exterior, Inversiones y Pesca",24,0]
[null,"Emisión de certificado para establecimientos",24,0]
[null,"Análisis físico, químico y microbiológico de productos pesqueros, acuícolas, agua, superficie y sedimentos",48,30]
[null,"Autorización de importación para garantizar la calidad e inocuidad de productos de uso acuícola",48,30]
[null,"Emisión de certificado de procedencia para post larvas y nauplios",48,30]
[null,"Análisis microbiológicos de insumos acuícolas",48,30]
[null,"Análisis virales de productos e insumos acuícolas",48,30]
[null,"Asignación de contingente para importación de azúcar blanco originario de la Comunidad Andina en el marco de la Resolución Nro 020 2018 del COMEX",80,30]
[null,"Aprobación de planillas A y B de autopartes de ensambladoras Ecuatorianas para exportación",240,30]
[null,"Autorización de cesión derechos concesión ejercer la cría y cultivo especies bioacuáticas zonas de playa y bahía",144,30]
[null,"Concesión zonas de playa y bahía para ejercer la cría y cultivo especies bioacuáticas",1056,30]
[null,"Emisión de Certificado de Procedimientos Acuícolas",120,30]
[null,"Renovación derechos concesión y autorización ejercer la cria y cultivo especies bioacuáticas zonas playa y bahía",72,30]
[null,"Emisión de certificado de registro sanitario unificado",160,30]
[null,"Reemisión de certificado de registro sanitario unificado",160,30]
[null,"Emisión de certificado sanitario de importación",8,0]
[null,"Emisión de certificado sanitario de importación MSVC",48,30]
[null,"Emisión o remisión de certificado sanitario de exportación de productos pesqueros y acuícolas",87,30]
[null,"Autorización del ejercicio de la actividad pesquera extractiva para embarcaciones artesanales nodrizas",24,0]
[null,"Autorización para construcción de embarcaciones pesqueras artesanales",1056,30]
[null,"Autorización para reconstrucción y o modificación de embarcaciones pesqueras artesanales",72,30]
[null,"Autorización de exenciones de tránsito para embarcaciones pesqueras industriales atuneras registradas en la CIAT",48,30]
[null,"Autorización de  exportación de productos pesqueros sujetos a restricciones tiburones",1056,30]
[null,"Autorización previo a la celebración de contrato de arrendamiento o asociación para embarcaciones pesqueras extranjeras - anuencia",150,30]
[null,"Autorización previa para la importación y posterior nacionalización de embarcaciones pesqueras industriales - anuencia ",120,30]
[null,"Emisión de permiso de pesca para embarcación deportiva",50,30]
[null,"Emisión de permiso para establecimientos comerciales",24,0]
[null,"Autorización para reconstrucción y/o modificación de embarcaciones pesqueras industriales",175,30]
[null,"Autorización de uso de marca para exportación de productos pesqueros",16,0]
[null,"Asistencia técnica pesquera industrial",5,0]
[null,"Autorización del ejercicio de la actividad pesquera para empresas procesadoras con modalidad copacking",175,30]
[null,"Autorización para celebrar contrato de arrendamiento o asociación para embarcaciones pesqueras extranjeras",120,30]
[null,"Emisión de certificado FAD FREE",15,0]
[null,"Autorización del ejercicio de la actividad pesquera extractiva bajo contrato de asociación o arrendamiento para embarcaciones industriales extranjeras",160,30]
[null,"Autorización del ejercicio de la actividad pesquera para empresas comercializadoras",175,30]
[null,"Autorización de exención de tránsito en periodos de veda a embarcaciones pesqueras industriales",30,0]
[null,"Autorización del ejercicio de la actividad pesquera para empresas procesadoras y comercializadoras",175,30]
[null,"Autorización para construcción de embarcaciones pesqueras industriales",85,30]
[null,"Emisión de certificado de declaración de pesca importada sin procesamiento",24,0]
[null,"Autorización de exportación de productos pesqueros no túnidos",24,0]
[null,"Autorización del ejercicio de la actividad pesquera extractiva para embarcaciones industriales",160,30]
[null,"Emisión de certificado de TEDs",45,30]
[null,"Emisión de permiso de pesca para embarcación industrial asociada",50,30]
[null,"Emisión de acta de producción efectiva pesquera",50,30]
[null,"Emisión de certificado de captura para productos pesqueros nacionales sin procesamiento",24,0]
[null,"Emisión de certificado de validación del documento estadístico de productos pesqueros para re-exportación",24,0]
[null,"Emisión de certificado Dolphin Safe a embarcaciones industriales pesqueras",16,0]
[null,"Emisión de certificado de captura simplificada de productos pesqueros",24,0]
[null,"Emisión de certificado de validación del documento estadístico de productos pesqueros para exportación",24,0]
[null,"Emisión de certificado de acreditación de origen legal para productos pesqueros",16,0]
[null,"Autorización para la importación de productos de la pesca, procesados y harina de pescado",24,0]
[null,"Emisión de permiso de pesca para embarcación industrial nacional",50,30]
[null,"Emisión de certificado de registro de control interno de captura a embarcaciones pesqueras industriales",12,0]
[null,"Emisión de permiso para pescador industrial",1,0]
[null,"Emisión de certificado de declaración de pesca importada con procesamiento",24,0]
[null,"Emisión de certificado de captura para productos pesqueros nacionales con procesamiento",24,0]

{"sheet":"CANAL ATENCIÓN","index":7,"n_rows":143,"n_cols":12,"rows_kept":143,"cut":false,"hidden":false,"merged":[[0,0,0,3],[1,0,1,3]]}
["PRIORIZACIÓN DE TRÁMITES ADMINISTRATIVOS"]
["CANAL DE ATENCIÓN"]
[null,null,null,null,null,null,null,null,"Totalmente en Línea",null,null,0]
["IDENTIFICADOR","TRÁMITE","CANAL ATENCIÓN","PUNTUACIÓN",null,null,null,null,"No se completa totalmente en línea.",null,null,10]
[null,"Aprobación de Estatuto y reconocimiento de personalidad jurídica","Totalmente en Línea",{"$f":"IF(ISBLANK(C5),\"\",IF(C5=\"Totalmente en línea\",0,IF(C5=\"Inicia en línea\",6,10)))","v":0}]
[null,"Reforma y codificación de los Estatutos","Totalmente en Línea",{"$f":"IF(ISBLANK(C6),\"\",IF(C6=\"Totalmente en línea\",0,IF(C6=\"Inicia en línea\",6,10)))","v":0}]
[null,"Disolución y liquidación por causal de las organizaciones sociales","No se completa totalmente en línea.",10]
[null,"Registro de Directiva de la Organización Social","Totalmente en Línea",0]
[null,"Registro de Inclusión o exclusión de miembros de la Organización Social","Totalmente en Línea",0]
[null,"Disolución y liquidación voluntaria de las organizaciones sociales","Totalmente en Línea",{"$f":"IF(ISBLANK(C10),\"\",IF(C10=\"Totalmente en línea\",0,IF(C10=\"Inicia en línea\",6,10)))","v":0}]
[null,"Emisión de registro de Comercializadores de Bienes de Producción Nacional (SBPN)","Totalmente en Línea",0]
[null,"Emisión de Registro de Producción Nacional","Totalmente en Línea",0]
[null,"Atención de denuncias por infracciones u omisiones a la Ley del Sistema Ecuatoriano de la Calidad ","No se completa totalmente en línea.",10]
[null,"Atención de quejas por infracciones u omisiones a la Ley Orgánica de Defensa del Consumidor","Totalmente en Línea",0]
[null,"Autorización de etiquetado y/o reetiquetado de mercancías sujetas a reglamentación técnica","Totalmente en Línea",0]
[null,"Emisión de Registro de certificados de conformidad","Totalmente en Línea",0]
[null,"Emisión de Registro a personas naturales o jurídicas que deseen brindar el servicio para ejecutar el proceso de etiquetado y/o reetiquetado","Totalmente en Línea",0]
[null,"Designación de Organismos de Evaluación de la Conformidad","Totalmente en Línea",0]
[null,"Emisión de licencias de importación de CKD de vehículos","No se completa totalmente en línea.",10]
[null,"Autorización de licencias para importadores de productos remanufacturados","Totalmente en Línea",0]
[null,"Autorización de nuevos modelos y versiones de CKD","Totalmente en Línea",0]
[null,"Autorización para importación de prototipos","Totalmente en Línea",0]
[null,"Emisión de certificado de existencia o no de Producción Nacional","No se completa totalmente en línea.",10]
[null,"Emisión de Registro de clave de exportación de café","Totalmente en Línea",0]
[null,"Emisión de Registro de exportador de chatarra","Totalmente en Línea",0]
[null,"Emisión de Registro de importación de materia prima industrial","Totalmente en Línea",0]
[null,"Emisión de Registro de importadores de sal","Totalmente en Línea",0]
[null,"Inclusión de nuevos fabricantes/proveedores de CKD","Totalmente en Línea",0]
[null,"Calificación partes nacionales como Material originario ecuatoriano (MOE) a ser aplicado en el registro y operación de empresas ensambladoras","Totalmente en Línea",0]
[null,"Emisión de Registro industrial de productores farmacéuticos (RIPF) ","Totalmente en Línea",0]
[null,"Emisión de Registro de Ensambladoras ","Totalmente en Línea",0]
[null,"Emisión de Registro para la importación de textiles y calzado ","Totalmente en Línea",0]
[null,"Autorización de Administradores de Zonas Especiales de Desarrollo Económicos","No se completa totalmente en línea.",10]
[null,"Calificación de Operadores de Zonas Especiales de Desarrollo Económico","No se completa totalmente en línea.",10]
[null,"Emisión de dictamen para autorización de Servicios de Apoyo en Zonas Especiales de Desarrollo Económico","No se completa totalmente en línea.",10]
[null,"Inscripción de nuevos programas de maquila","Totalmente en Línea",0]
[null,"Ampliación o cancelación de programas de maquila","Totalmente en Línea",0]
[null,"Emisión de Registro de maquiladoras","Totalmente en Línea",0]
[null,"Autorización de Licencias de importación / exportación de sustancias Hidrofluorocarbonadas (HFC)","Totalmente en Línea",0]
[null,"Autorización de licencias para importación / exportación de sustancias agotadoras de la capa de ozono (HCFC)","Totalmente en Línea",0]
[null,"Emisión de Registro de importadores de neumáticos","Totalmente en Línea",0]
[null,"Emisión de Registro de empresas reencauchadoras","Totalmente en Línea",0]
[null,"Emisión de Registro de centros de acopio para acceder al impuesto redimible a la botella plástica no retornable PET","Totalmente en Línea",0]
[null,"Emisión de Registro de embotelladores para acceder al impuesto redimible a la botella plástica no retornable PET","Totalmente en Línea",0]
[null,"Emisión de Registro de importadores para acceder al impuesto redimible a la botella plástica no retornable PET","Totalmente en Línea",0]
[null,"Emisión de Registro de recicladores para acceder al impuesto redimible a la botella plástica no retornable PET","Totalmente en Línea",0]
[null,"Emisión de Registro para ejecutar el proceso de chatarrización de bienes del sector público","Totalmente en Línea",0]
[null,"Asesoría a emprendedores en unidades productivas","No se completa totalmente en línea.",10]
[null,"Asistencia técnica para  proyectos de innovación productiva (MiproLab)","No se completa totalmente en línea.",10]
[null,"Asistencia técnica para el diseño gráfico y productos para las MIPYMES y artesanos ","No se completa totalmente en línea.",10]
[null,"Emisión de Registro Nacional de Emprendimiento","Totalmente en Línea",0]
[null,"Emisión de Registro Único de Mipymes","Totalmente en Línea",0]
[null,"Emisión de Registro Único Artesanal","Totalmente en Línea",0]
[null,"Emisión de certificaciones para productos pesqueros y acuícolas","No se completa totalmente en línea.",{"$f":"IF(ISBLANK(C54),\"\",IF(C54=\"Totalmente en línea\",0,IF(C54=\"Inicia en línea\",6,10)))","v":10}]
[null,"Emisión de certificado de calidad de los productos pesqueros y acuícolas","No se completa totalmente en línea.",10]
[null,"Emisión de certificado sanitario y/o de calidad traducido","Totalmente en Línea",0]
[null,"Emisión de registro de inscripción de calidad e inocuidad de embarcaciones","No se completa totalmente en línea.",10]
[null,"Emisión de registro de inscripción de calidad e inocuidad de embarcaciones para transportistas y comerciantes","No se completa totalmente en línea.",10]
[null,"Emisión de registro de inscripción de calidad e inocuidad de establecimientos","No se completa totalmente en línea.",10]
[null,"Revisión de documento de formularios, monografías, y fichas técnicas para los diferentes mercados","No se completa totalmente en línea.",10]
[null,"Verificación de control zoosanitario en importación y aclimatación de organismos vivos acuícolas","No se completa totalmente en línea.",10]
[null,"Verificación regulatoria sanitaria","No se completa totalmente en línea.",10]
[null,"Asistencia técnica pesquera artesanal","No se completa totalmente en línea.",10]
[null,"Emisión de permiso de pesca para embarcaciones artesanales","No se completa totalmente en línea.",10]
[null,"Emisión de permiso para comerciante mayorista y minorista de productos pesqueros","No se completa totalmente en línea.",10]
[null,"Emisión de permiso para pescador artesanal","No se completa totalmente en línea.",10]
[null,"Autorización para la comercialización interna de productos acuícolas procesados importados","No se completa totalmente en línea.",10]
[null,"Autorización o clasificación para el establecimiento y funcionamiento de laboratorios de especies bioacuáticas","No se completa totalmente en línea.",10]
[null,"Asistencia técnica en infraestructura, producción y buenas prácticas acuícolas","No se completa totalmente en línea.",10]
[null,"Autorización de importación de especies acuícolas vivas","No se completa totalmente en línea.",10]
[null,"Autorización de importación para productos frescos o congelados","No se completa totalmente en línea.",10]
[null,"Autorización de uso de marca para exportación de productos acuícolas","No se completa totalmente en línea.",10]
[null,"Autorización para ejercer actividades conexas de importación de insumos de uso acuícola","No se completa totalmente en línea.",10]
[null,"Autorización para el cultivo de especies bioacuáticas en tierras altas","No se completa totalmente en línea.",10]
[null,"Autorización para la comercialización interna de productos acuícolas en fase de cultivo o procesamiento","No se completa totalmente en línea.",10]
[null,"Autorización para la exportación de alimento balanceado de uso acuícola","No se completa totalmente en línea.",10]
[null,"Autorización para productos de prohibida exportación y sujeta a autorización previa","No se completa totalmente en línea.",10]
[null,"Autorización y/o clasificación para ejercer actividades conexas de fabricación nacional","No se completa totalmente en línea.",10]
[null,"Clasificación bajo la modalidad de copacking para empresas acuícolas","No se completa totalmente en línea.",10]
[null,"Clasificación de plantas procesadoras, empacadoras, productos y subproductos acuícolas","No se completa totalmente en línea.",10]
[null,"Concesión de espacios marítimos jurisdiccionales para el ejercicio de la actividad de la maricultura","No se completa totalmente en línea.",10]
[null,"Emisión de certificado de acreditación de origen legal para productos acuícolas","No se completa totalmente en línea.",10]
[null,"Emisión de acta de producción efectiva acuícola","No se completa totalmente en línea.",10]
[null,"Emisión de certificado geográfico y estudios de cobertura para camaroneras y predios","No se completa totalmente en línea.",10]
[null,"Emisión de declaración de exportación de camarón a Estados Unidos de América (Form DSP-121)","No se completa totalmente en línea.",10]
[null,"Acceso a la información pública del Ministerio de Producción, Comercio Exterior, Inversiones y Pesca","Totalmente en Línea",0]
[null,"Emisión de certificado de Origen de productos originarios de Ecuador para exportación","Totalmente en Línea",0]
[null,"Aprobación de planillas A y B de autopartes de ensambladoras Ecuatorianas para exportación","No se completa totalmente en línea.",10]
[null,"Asignación de contingente para importación de azúcar blanco originario de la Comunidad Andina en el marco de la Resolución Nro 020 2018 del COMEX","No se completa totalmente en línea.",10]
[null,"Autorización de importación de insumos de uso acuícola","No se completa totalmente en línea.",10]
[null,"Análisis físico, químico y microbiológico de productos pesqueros, acuícolas, agua, superficie y sedimentos","No se completa totalmente en línea.",10]
[null,"Análisis microbiológicos de insumos acuícolas","No se completa totalmente en línea.",10]
[null,"Análisis virales de productos e insumos acuícolas","No se completa totalmente en línea.",10]
[null,"Autorización de importación para garantizar la calidad e inocuidad de productos de uso acuícola","Totalmente en Línea",0]
[null,"Emisión de certificado de procedencia para post larvas y nauplios","Totalmente en Línea",0]
[null,"Emisión de certificado para establecimientos","No se completa totalmente en línea.",10]
[null,"Autorización de cesión derechos concesión ejercer la cría y cultivo especies bioacuáticas zonas de playa y bahía","No se completa totalmente en línea.",{"$f":"IF(ISBLANK(C97),\"\",IF(C97=\"Totalmente en línea\",0,IF(C97=\"Inicia en línea\",6,10)))","v":10}]
[null,"Concesión zonas de playa y bahía para ejercer la cría y cultivo especies bioacuáticas","No se completa totalmente en línea.",10]
[null,"Emisión de Certificado de Procedimientos Acuícolas","No se completa totalmente en línea.",10]
[null,"Renovación derechos concesión y autorización ejercer la cria y cultivo especies bioacuáticas zonas playa y bahía","No se completa totalmente en línea.",10]
[null,"Emisión de certificado de registro sanitario unificado","No se completa totalmente en línea.",10]
[null,"Reemisión de certificado de registro sanitario unificado","No se completa totalmente en línea.",10]
[null,"Emisión de certificado sanitario de importación","No se completa totalmente en línea.",10]
[null,"Emisión de certificado sanitario de importación MSVC","No se completa totalmente en línea.",10]
[null,"Emisión o remisión de certificado sanitario de exportación de productos pesqueros y acuícolas","No se completa totalmente en línea.",10]
[null,"Autorización del ejercicio de la actividad pesquera extractiva para embarcaciones artesanales nodrizas","No se completa totalmente en línea.",10]
[null,"Autorización para construcción de embarcaciones pesqueras artesanales","No se completa totalmente en línea.",10]
[null,"Autorización para reconstrucción y o modificación de embarcaciones pesqueras artesanales","No se completa totalmente en línea.",10]
[null,"Autorización de exenciones de tránsito para embarcaciones pesqueras industriales atuneras registradas en la CIAT","No se completa totalmente en línea.",10]
[null,"Autorización de  exportación de productos pesqueros sujetos a restricciones tiburones","No se completa totalmente en línea.",10]
[null,"Autorización previo a la celebración de contrato de arrendamiento o asociación para embarcaciones pesqueras extranjeras - anuencia","No se completa totalmente en línea.",{"$f":"IF(ISBLANK(C111),\"\",IF(C111=\"Totalmente en línea\",0,IF(C111=\"Inicia en línea\",6,10)))","v":10}]
[null,"Autorización previa para la importación y posterior nacionalización de embarcaciones pesqueras industriales - anuencia ","No se completa totalmente en línea.",10]
[null,"Emisión de permiso de pesca para embarcación deportiva","No se completa totalmente en línea.",10]
[null,"Emisión de permiso para establecimientos comerciales","No se completa totalmente en línea.",10]
[null,"Autorización para reconstrucción y/o modificación de embarcaciones pesqueras industriales","No se completa totalmente en línea.",10]
[null,"Autorización de uso de marca para exportación de productos pesqueros","No se completa totalmente en línea.",10]
[null,"Asistencia técnica pesquera industrial","No se completa totalmente en línea.",10]
[null,"Autorización del ejercicio de la actividad pesquera para empresas procesadoras con modalidad copacking","No se completa totalmente en línea.",10]
[null,"Autorización para celebrar contrato de arrendamiento o asociación para embarcaciones pesqueras extranjeras","No se completa totalmente en línea.",10]
[null,"Emisión de certificado FAD FREE","No se completa totalmente en línea.",10]
[null,"Autorización del ejercicio de la actividad pesquera extractiva bajo contrato de asociación o arrendamiento para embarcaciones industriales extranjeras","No se completa totalmente en línea.",10]
[null,"Autorización del ejercicio de la actividad pesquera para empresas comercializadoras","No se completa totalmente en línea.",10]
[null,"Autorización de exención de tránsito en periodos de veda a embarcaciones pesqueras industriales","No se completa totalmente en línea.",10]
[null,"Autorización del ejercicio de la actividad pesquera para empresas procesadoras y comercializadoras","No se completa totalmente en línea.",10]
[null,"Autorización para construcción de embarcaciones pesqueras industriales","No se completa totalmente en línea.",10]
[null,"Emisión de certificado de declaración de pesca importada sin procesamiento","Totalmente en Línea",0]
[null,"Autorización de exportación de productos pesqueros no túnidos","No se completa totalmente en línea.",10]
[null,"Autorización del ejercicio de la actividad pesquera extractiva para embarcaciones industriales","No se completa totalmente en línea.",10]
[null,"Emisión de certificado de TEDs","No se completa totalmente en línea.",10]
[null,"Emisión de permiso de pesca para embarcación industrial asociada","No se completa totalmente en línea.",10]
[null,"Emisión de acta de producción efectiva pesquera","No se completa totalmente en línea.",10]
[null,"Emisión de certificado de captura para productos pesqueros nacionales sin procesamiento","Totalmente en Línea",0]
[null,"Emisión de certificado de validación del documento estadístico de productos pesqueros para re-exportación","No se completa totalmente en línea.",10]
[null,"Emisión de certificado Dolphin Safe a embarcaciones industriales pesqueras","No se completa totalmente en línea.",10]
[null,"Emisión de certificado de captura simplificada de productos pesqueros","Totalmente en Línea",0]
[null,"Emisión de certificado de validación del documento estadístico de productos pesqueros para exportación","No se completa totalmente en línea.",10]
[null,"Emisión de certificado de acreditación de origen legal para productos pesqueros","Totalmente en Línea",0]
[null,"Autorización para la importación de productos de la pesca, procesados y harina de pescado","Totalmente en Línea",0]
[null,"Emisión de permiso de pesca para embarcación industrial nacional","No se completa totalmente en línea.",10]
[null,"Emisión de certificado de registro de control interno de captura a embarcaciones pesqueras industriales","No se completa totalmente en línea.",10]
[null,"Emisión de permiso para pescador industrial","No se completa totalmente en línea.",10]
[null,"Emisión de certificado de declaración de pesca importada con procesamiento","Totalmente en Línea",0]
[null,"Emisión de certificado de captura para productos pesqueros nacionales con procesamiento","Totalmente en Línea",0]

{"sheet":"RESUMEN","index":8,"n_rows":142,"n_cols":25,"rows_kept":142,"cut":false,"hidden":false,"merged":[[1,9,1,10],[1,11,1,12],[1,13,2,13],[0,2,0,6],[0,7,0,12],[1,5,2,5],[1,6,2,6],[1,7,1,8],[1,0,2,0],[1,1,2,1],[1,2,2,2],[1,3,2,3],[1,4,2,4]]}
[null,null,"BÁSICOS",null,null,null,null,"ADICIONALES"]
["ID trámite","Nombre del trámite","Demanda","Quejas","Costo para administración","Tiempo de respuesta","Canal de atención","Necesidades ciudadanas",null,"Susceptibilidad a corrupción",null,"Volumen de devoluciones",null,"PUNTAJE TOTAL"]
[null,null,null,null,null,null,null,"Criterio","Puntuación","Criterio","Puntuación","Criterio","Puntuación",null,null,null,null,null,null,null,"demanda",0,3,6,10]
[null,"Aprobación de Estatuto y reconocimiento de personalidad jurídica",6,0,20,30,0,"SI",{"$f":"IF(H4=\"SI\",5,0)","v":5},"NO",{"$f":"IF(J4=\"SI\",10,0)","v":0},"NO",{"$f":"IF(L4=\"SI\",5,0)","v":0},{"$f":"SUM(C4:G4,I4,K4,M4)","v":61},null,null,null,null,null,null,"quejas",0,4,10]
[null,"Reforma y codificación de los Estatutos",3,0,20,30,0,"SI",{"$f":"IF(H5=\"SI\",5,0)","v":5},"NO",{"$f":"IF(J5=\"SI\",10,0)","v":0},"NO",{"$f":"IF(L5=\"SI\",5,0)","v":0},{"$f":"SUM(C5:G5,I5,K5,M5)","v":58},null,null,null,null,null,null,"cpa",5,10,20]
[null,"Disolución y liquidación por causal de las organizaciones sociales",3,0,20,30,10,"SI",5,"NO",0,"NO",0,68,null,null,null,null,null,null,"tr",0,30]
[null,"Registro de Directiva de la Organización Social",6,0,20,30,0,"SI",5,"NO",0,"NO",0,61,null,null,null,null,null,null,"ca",0,10]
[null,"Registro de Inclusión o exclusión de miembros de la Organización Social",6,0,20,30,0,"SI",5,"NO",0,"NO",0,61,null,null,null,null,null,null,null,"SI","NO"]
[null,"Disolución y liquidación voluntaria de las organizaciones sociales",3,0,20,30,0,"SI",5,"NO",0,"NO",0,58]
[null,"Emisión de registro de Comercializadores de Bienes de Producción Nacional (SBPN)",0,0,5,0,0,"SI",5,"NO",0,"NO",0,10]
[null,"Emisión de Registro de Producción Nacional",6,0,10,0,0,"SI",5,"NO",0,"NO",0,21]
[null,"Atención de denuncias por infracciones u omisiones a la Ley del Sistema Ecuatoriano de la Calidad ",6,0,20,30,10,"SI",5,"NO",0,"NO",0,71]
[null,"Atención de quejas por infracciones u omisiones a la Ley Orgánica de Defensa del Consumidor",10,0,10,0,0,"SI",5,"NO",0,"NO",0,25]
[null,"Autorización de etiquetado y/o reetiquetado de mercancías sujetas a reglamentación técnica",10,0,5,0,0,"SI",5,"NO",0,"NO",0,20]
[null,"Emisión de Registro de certificados de conformidad",10,0,10,0,0,"SI",5,"NO",0,"NO",0,25]
[null,"Emisión de Registro a personas naturales o jurídicas que deseen brindar el servicio para ejecutar el proceso de etiquetado y/o reetiquetado",3,0,5,0,0,"SI",5,"NO",0,"NO",0,13]
[null,"Designación de Organismos de Evaluación de la Conformidad",3,0,5,0,0,"SI",5,"NO",0,"NO",0,13]
[null,"Emisión de licencias de importación de CKD de vehículos",3,0,5,0,10,"SI",5,"NO",0,"NO",0,23]
[null,"Autorización de licencias para importadores de productos remanufacturados",3,0,5,0,0,"SI",5,"NO",0,"NO",0,13]
[null,"Autorización de nuevos modelos y versiones de CKD",6,0,10,0,0,"SI",5,"NO",0,"NO",0,21]
[null,"Autorización para importación de prototipos",3,0,10,0,0,"SI",5,"NO",0,"NO",0,18]
[null,"Emisión de certificado de existencia o no de Producción Nacional",6,0,20,30,10,"SI",5,"NO",0,"NO",0,71]
[null,"Emisión de Registro de clave de exportación de café",3,0,10,0,0,"SI",5,"NO",0,"NO",0,18]
[null,"Emisión de Registro de exportador de chatarra",3,0,5,0,0,"SI",5,"NO",0,"NO",0,13]
[null,"Emisión de Registro de importación de materia prima industrial",3,0,5,0,0,"SI",5,"NO",0,"NO",0,13]
[null,"Emisión de Registro de importadores de sal",3,0,5,0,0,"SI",5,"NO",0,"NO",0,13]
[null,"Inclusión de nuevos fabricantes/proveedores de CKD",3,0,10,30,0,"SI",5,"NO",0,"NO",0,48]
[null,"Calificación partes nacionales como Material originario ecuatoriano (MOE) a ser aplicado en el registro y operación de empresas ensambladoras",10,0,5,0,0,"SI",5,"NO",0,"NO",0,20]
[null,"Emisión de Registro industrial de productores farmacéuticos (RIPF) ",3,0,20,30,0,"SI",5,"NO",0,"NO",0,58]
[null,"Emisión de Registro de Ensambladoras ",3,0,10,0,0,"SI",5,"NO",0,"NO",0,18]
[null,"Emisión de Registro para la importación de textiles y calzado ",10,0,5,0,0,"SI",5,"NO",0,"NO",0,20]
[null,"Autorización de Administradores de Zonas Especiales de Desarrollo Económicos",0,0,20,30,10,"SI",5,"NO",0,"NO",0,65]
[null,"Calificación de Operadores de Zonas Especiales de Desarrollo Económico",3,0,20,30,10,"SI",5,"NO",0,"NO",0,68]
[null,"Emisión de dictamen para autorización de Servicios de Apoyo en Zonas Especiales de Desarrollo Económico",3,0,20,30,10,"SI",5,"NO",0,"NO",0,68]
[null,"Inscripción de nuevos programas de maquila",3,0,20,30,0,"SI",5,"NO",0,"NO",0,58]
[null,"Ampliación o cancelación de programas de maquila",3,0,20,30,0,"SI",5,"NO",0,"NO",0,58]
[null,"Emisión de Registro de maquiladoras",0,0,20,30,0,"SI",5,"NO",0,"NO",0,55]
[null,"Autorización de Licencias de importación / exportación de sustancias Hidrofluorocarbonadas (HFC)",6,0,5,0,0,"SI",5,"NO",0,"NO",0,16]
[null,"Autorización de licencias para importación / exportación de sustancias agotadoras de la capa de ozono (HCFC)",6,0,5,0,0,"SI",5,"NO",0,"NO",0,16]
[null,"Emisión de Registro de importadores de neumáticos",6,0,10,0,0,"SI",5,"NO",0,"NO",0,21]
[null,"Emisión de Registro de empresas reencauchadoras",3,0,10,30,0,"SI",5,"NO",0,"NO",0,48]
[null,"Emisión de Registro de centros de acopio para acceder al impuesto redimible a la botella plástica no retornable PET",3,0,10,0,0,"SI",5,"NO",0,"NO",0,18]
[null,"Emisión de Registro de embotelladores para acceder al impuesto redimible a la botella plástica no retornable PET",0,0,10,0,0,"SI",5,"NO",0,"NO",0,15]
[null,"Emisión de Registro de importadores para acceder al impuesto redimible a la botella plástica no retornable PET",0,0,10,0,0,"SI",5,"NO",0,"NO",0,15]
[null,"Emisión de Registro de recicladores para acceder al impuesto redimible a la botella plástica no retornable PET",3,0,10,0,0,"SI",5,"NO",0,"NO",0,18]
[null,"Emisión de Registro para ejecutar el proceso de chatarrización de bienes del sector público",3,0,10,30,0,"SI",5,"NO",0,"NO",0,48]
[null,"Asesoría a emprendedores en unidades productivas",10,0,10,0,10,"SI",5,"NO",0,"SI",5,40]
[null,"Asistencia técnica para  proyectos de innovación productiva (MiproLab)",10,0,10,0,10,"SI",5,"NO",0,"SI",5,40]
[null,"Asistencia técnica para el diseño gráfico y productos para las MIPYMES y artesanos ",10,0,10,30,10,"SI",5,"NO",0,"SI",5,70]
[null,"Emisión de Registro Nacional de Emprendimiento",6,0,5,0,0,"SI",5,"NO",0,"NO",0,16]
[null,"Emisión de Registro Único de Mipymes",10,0,5,0,0,"SI",5,"NO",0,"NO",0,20]
[null,"Emisión de Registro Único Artesanal",10,0,5,0,0,"SI",5,"NO",0,"NO",0,20]
[null,"Emisión de certificaciones para productos pesqueros y acuícolas",10,0,5,30,10,"SI",5,"NO",0,"SI",5,65]
[null,"Emisión de certificado de calidad de los productos pesqueros y acuícolas",10,0,5,30,10,"SI",5,"NO",0,"NO",0,60]
[null,"Emisión de certificado sanitario y/o de calidad traducido",10,0,5,0,0,"SI",5,"NO",0,"NO",0,20]
[null,"Emisión de registro de inscripción de calidad e inocuidad de embarcaciones",10,0,5,0,10,"SI",5,"NO",0,"SI",5,35]
[null,"Emisión de registro de inscripción de calidad e inocuidad de embarcaciones para transportistas y comerciantes",10,0,5,0,10,"SI",5,"NO",0,"SI",5,35]
[null,"Emisión de registro de inscripción de calidad e inocuidad de establecimientos",10,0,5,0,10,"SI",5,"NO",0,"SI",5,35]
[null,"Revisión de documento de formularios, monografías, y fichas técnicas para los diferentes mercados",6,0,10,0,10,"SI",5,"NO",0,"SI",5,36]
[null,"Verificación de control zoosanitario en importación y aclimatación de organismos vivos acuícolas",6,0,20,30,10,"SI",5,"NO",0,"SI",5,76]
[null,"Verificación regulatoria sanitaria",10,0,5,30,10,"SI",5,"NO",0,"SI",5,65]
[null,"Asistencia técnica pesquera artesanal",6,0,10,0,10,"SI",5,"NO",0,"SI",5,36]
[null,"Emisión de permiso de pesca para embarcaciones artesanales",10,0,10,30,10,"SI",5,"NO",0,"SI",5,70]
[null,"Emisión de permiso para comerciante mayorista y minorista de productos pesqueros",10,0,5,0,10,"SI",5,"NO",0,"SI",5,35]
[null,"Emisión de permiso para pescador artesanal",10,0,5,0,10,"SI",5,"NO",0,"SI",5,35]
[null,"Autorización para la comercialización interna de productos acuícolas procesados importados",3,0,20,30,10,"SI",5,"NO",0,"SI",5,73]
[null,"Autorización o clasificación para el establecimiento y funcionamiento de laboratorios de especies bioacuáticas",6,0,20,30,10,"SI",5,"NO",0,"SI",5,76]
[null,"Asistencia técnica en infraestructura, producción y buenas prácticas acuícolas",10,0,10,0,10,"SI",5,"NO",0,"SI",5,40]
[null,"Autorización de importación de especies acuícolas vivas",3,0,5,0,10,"SI",{"$f":"IF(H69=\"SI\",5,0)","v":5},"NO",{"$f":"IF(J69=\"SI\",10,0)","v":0},"SI",{"$f":"IF(L69=\"SI\",5,0)","v":5},{"$f":"SUM(C69:G69,I69,K69,M69)","v":28}]
[null,"Autorización de importación para productos frescos o congelados",6,0,5,0,10,"SI",5,"NO",0,"SI",5,31]
[null,"Autorización de uso de marca para exportación de productos acuícolas",3,0,5,0,10,"SI",5,"NO",0,"SI",5,28]
[null,"Autorización para ejercer actividades conexas de importación de insumos de uso acuícola",3,0,10,30,10,"SI",5,"NO",0,"SI",5,63]
[null,"Autorización para el cultivo de especies bioacuáticas en tierras altas",6,0,20,30,10,"SI",5,"NO",0,"SI",5,76]
[null,"Autorización para la comercialización interna de productos acuícolas en fase de cultivo o procesamiento",6,0,20,30,10,"SI",5,"NO",0,"SI",5,76]
[null,"Autorización para la exportación de alimento balanceado de uso acuícola",0,0,5,0,10,"SI",5,"NO",0,"SI",5,25]
[null,"Autorización para productos de prohibida exportación y sujeta a autorización previa",10,0,5,0,10,"SI",5,"NO",0,"SI",5,35]
[null,"Autorización y/o clasificación para ejercer actividades conexas de fabricación nacional",6,0,20,30,10,"SI",5,"NO",0,"SI",5,76]
[null,"Clasificación bajo la modalidad de copacking para empresas acuícolas",3,0,20,30,10,"SI",5,"NO",0,"SI",5,73]
[null,"Clasificación de plantas procesadoras, empacadoras, productos y subproductos acuícolas",6,0,20,30,10,"SI",5,"NO",0,"SI",5,76]
[null,"Concesión de espacios marítimos jurisdiccionales para el ejercicio de la actividad de la maricultura",0,0,20,30,10,"SI",5,"NO",0,"SI",5,70]
[null,"Emisión de certificado de acreditación de origen legal para productos acuícolas",6,0,5,0,10,"SI",5,"NO",0,"SI",5,31]
[null,"Emisión de acta de producción efectiva acuícola",6,0,10,30,10,"SI",5,"NO",0,"SI",5,66]
[null,"Emisión de certificado geográfico y estudios de cobertura para camaroneras y predios",10,0,10,0,10,"SI",5,"NO",0,"SI",5,40]
[null,"Emisión de declaración de exportación de camarón a Estados Unidos de América (Form DSP-121)",10,0,5,0,10,"SI",5,"NO",0,"SI",5,35]
[null,"Acceso a la información pública del Ministerio de Producción, Comercio Exterior, Inversiones y Pesca",6,10,10,0,0,"SI",5,"NO",0,"NO",0,31]
[null,"Emisión de certificado de Origen de productos originarios de Ecuador para exportación",10,0,5,0,0,"SI",5,"NO",0,"NO",0,20]
[null,"Aprobación de planillas A y B de autopartes de ensambladoras Ecuatorianas para exportación",10,0,20,30,10,"SI",5,"NO",0,"SI",5,80]
[null,"Asignación de contingente para importación de azúcar blanco originario de la Comunidad Andina en el marco de la Resolución Nro 020 2018 del COMEX",6,0,20,30,10,"SI",5,"NO",0,"SI",5,76]
[null,"Autorización de importación de insumos de uso acuícola",6,0,5,0,10,"SI",5,"NO",0,"SI",5,31]
[null,"Análisis físico, químico y microbiológico de productos pesqueros, acuícolas, agua, superficie y sedimentos",10,0,10,30,10,"SI",5,"NO",0,"SI",5,70]
[null,"Análisis microbiológicos de insumos acuícolas",10,0,10,30,10,"SI",5,"NO",0,"SI",5,70]
[null,"Análisis virales de productos e insumos acuícolas",10,0,10,30,10,"SI",5,"NO",0,"SI",5,70]
[null,"Autorización de importación para garantizar la calidad e inocuidad de productos de uso acuícola",6,0,10,30,0,"SI",5,"NO",0,"NO",0,51]
[null,"Emisión de certificado de procedencia para post larvas y nauplios",0,0,10,30,0,"SI",5,"NO",0,"NO",0,45]
[null,"Emisión de certificado para establecimientos",10,0,10,0,10,"SI",5,"NO",0,"SI",5,40]
[null,"Autorización de cesión derechos concesión ejercer la cría y cultivo especies bioacuáticas zonas de playa y bahía",6,0,5,30,10,"SI",5,"NO",0,"NO",0,56]
[null,"Concesión zonas de playa y bahía para ejercer la cría y cultivo especies bioacuáticas",3,0,20,30,10,"SI",5,"NO",0,"NO",0,68]
[null,"Emisión de Certificado de Procedimientos Acuícolas",10,0,20,30,10,"SI",5,"NO",0,"NO",0,75]
[null,"Renovación derechos concesión y autorización ejercer la cria y cultivo especies bioacuáticas zonas playa y bahía",6,0,5,30,10,"SI",5,"NO",0,"NO",0,56]
[null,"Emisión de certificado de registro sanitario unificado",10,0,20,30,10,"SI",5,"NO",0,"NO",0,75]
[null,"Reemisión de certificado de registro sanitario unificado",6,0,20,30,10,"SI",5,"NO",0,"NO",0,71]
[null,"Emisión de certificado sanitario de importación",10,0,5,0,10,"SI",5,"NO",0,"NO",0,30]
[null,"Emisión de certificado sanitario de importación MSVC",6,0,5,30,10,"SI",5,"NO",0,"NO",0,56]
[null,"Emisión o remisión de certificado sanitario de exportación de productos pesqueros y acuícolas",10,0,20,30,10,"SI",5,"NO",0,"NO",0,75]
[null,"Autorización del ejercicio de la actividad pesquera extractiva para embarcaciones artesanales nodrizas",6,0,5,0,10,"SI",5,"NO",0,"NO",0,26]
[null,"Autorización para construcción de embarcaciones pesqueras artesanales",3,0,20,30,10,"SI",5,"NO",0,"NO",0,68]
[null,"Autorización para reconstrucción y o modificación de embarcaciones pesqueras artesanales",6,0,5,30,10,"SI",5,"NO",0,"NO",0,56]
[null,"Autorización de exenciones de tránsito para embarcaciones pesqueras industriales atuneras registradas en la CIAT",6,0,5,30,10,"SI",5,"NO",0,"NO",0,56]
[null,"Autorización de  exportación de productos pesqueros sujetos a restricciones tiburones",6,0,20,30,10,"SI",5,"NO",0,"NO",0,71]
[null,"Autorización previo a la celebración de contrato de arrendamiento o asociación para embarcaciones pesqueras extranjeras - anuencia",0,0,20,30,10,"SI",5,"NO",0,"NO",0,65]
[null,"Autorización previa para la importación y posterior nacionalización de embarcaciones pesqueras industriales - anuencia ",3,0,20,30,10,"SI",5,"NO",0,"NO",0,68]
[null,"Emisión de permiso de pesca para embarcación deportiva",3,0,10,30,10,"SI",5,"NO",0,"NO",0,58]
[null,"Emisión de permiso para establecimientos comerciales",3,0,10,0,10,"SI",5,"NO",0,"NO",0,28]
[null,"Autorización para reconstrucción y/o modificación de embarcaciones pesqueras industriales",3,0,20,30,10,"SI",5,"NO",0,"NO",0,68]
[null,"Autorización de uso de marca para exportación de productos pesqueros",3,0,10,0,10,"SI",5,"NO",0,"NO",0,28]
[null,"Asistencia técnica pesquera industrial",3,0,5,0,10,"SI",5,"NO",0,"NO",0,23]
[null,"Autorización del ejercicio de la actividad pesquera para empresas procesadoras con modalidad copacking",3,0,20,30,10,"SI",5,"NO",0,"NO",0,68]
[null,"Autorización para celebrar contrato de arrendamiento o asociación para embarcaciones pesqueras extranjeras",3,0,20,30,10,"SI",5,"NO",0,"NO",0,68]
[null,"Emisión de certificado FAD FREE",3,0,5,0,10,"SI",5,"NO",0,"NO",0,23]
[null,"Autorización del ejercicio de la actividad pesquera extractiva bajo contrato de asociación o arrendamiento para embarcaciones industriales extranjeras",3,0,20,30,10,"SI",5,"NO",0,"NO",0,68]
[null,"Autorización del ejercicio de la actividad pesquera para empresas comercializadoras",3,0,20,30,10,"SI",5,"NO",0,"NO",0,68]
[null,"Autorización de exención de tránsito en periodos de veda a embarcaciones pesqueras industriales",3,0,10,0,10,"SI",5,"NO",0,"NO",0,28]
[null,"Autorización del ejercicio de la actividad pesquera para empresas procesadoras y comercializadoras",3,0,20,30,10,"SI",5,"NO",0,"NO",0,68]
[null,"Autorización para construcción de embarcaciones pesqueras industriales",6,0,20,30,10,"SI",5,"NO",0,"NO",0,71]
[null,"Emisión de certificado de declaración de pesca importada sin procesamiento",6,0,10,0,0,"SI",5,"NO",0,"NO",0,21]
[null,"Autorización de exportación de productos pesqueros no túnidos",6,0,10,0,10,"SI",5,"NO",0,"NO",0,31]
[null,"Autorización del ejercicio de la actividad pesquera extractiva para embarcaciones industriales",6,0,20,30,10,"SI",5,"NO",0,"NO",0,71]
[null,"Emisión de certificado de TEDs",6,0,10,30,10,"SI",5,"NO",0,"NO",0,61]
[null,"Emisión de permiso de pesca para embarcación industrial asociada",6,0,10,30,10,"SI",5,"NO",0,"NO",0,61]
[null,"Emisión de acta de producción efectiva pesquera",6,0,10,30,10,"SI",5,"NO",0,"NO",0,61]
[null,"Emisión de certificado de captura para productos pesqueros nacionales sin procesamiento",6,0,10,0,0,"SI",5,"NO",0,"NO",0,21]
[null,"Emisión de certificado de validación del documento estadístico de productos pesqueros para re-exportación",6,0,10,0,10,"SI",5,"NO",0,"NO",0,31]
[null,"Emisión de certificado Dolphin Safe a embarcaciones industriales pesqueras",10,0,5,0,10,"SI",{"$f":"IF(H133=\"SI\",5,0)","v":5},"NO",{"$f":"IF(J133=\"SI\",10,0)","v":0},"NO",{"$f":"IF(L133=\"SI\",5,0)","v":0},{"$f":"SUM(C133:G133,I133,K133,M133)","v":30}]
[null,"Emisión de certificado de captura simplificada de productos pesqueros",10,0,10,0,0,"SI",5,"NO",0,"NO",0,25]
[null,"Emisión de certificado de validación del documento estadístico de productos pesqueros para exportación",10,0,10,0,10,"SI",5,"NO",0,"NO",0,35]
[null,"Emisión de certificado de acreditación de origen legal para productos pesqueros",10,0,5,0,0,"SI",5,"NO",0,"NO",0,20]
[null,"Autorización para la importación de productos de la pesca, procesados y harina de pescado",10,0,10,0,0,"SI",5,"NO",0,"NO",0,25]
[null,"Emisión de permiso de pesca para embarcación industrial nacional",10,0,10,30,10,"SI",5,"NO",0,"NO",0,65]
[null,"Emisión de certificado de registro de control interno de captura a embarcaciones pesqueras industriales",10,0,5,0,10,"SI",5,"NO",0,"NO",0,30]
[null,"Emisión de permiso para pescador industrial",10,0,5,0,10,"SI",5,"NO",0,"NO",0,30]
[null,"Emisión de certificado de declaración de pesca importada con procesamiento",10,0,10,0,0,"SI",5,"NO",0,"NO",0,25]
[null,"Emisión de certificado de captura para productos pesqueros nacionales con procesamiento",10,0,10,0,0,"SI",5,"NO",0,"NO",0,25]